Workbook

Sheet Formulario
B5: INGRESE LOS DATOS PARA SIMULAR EL VALOR TOTAL UNIFICADO DEL CRÉDITO EDUCATIVO
C8: Digite el valor del crédito | D8: 20000000
C9: Digite el Plazo (Entre 6 y 60 meses) | D9: 48
C10: Digite la Tasa Efectiva Anual | D10: 0.14
C11: Elija el Rango de edad del deudor | D11: De 18 a 50 años
C12: Elija el Tipo de Estudio de Crédito | D12: Libre Inversión
C13: Elija el Tipo de Desembolso | D13: Transferencia bancaria
C14: Elija el Canal de Solicitud | D14: Of. Tradicional/Preferente
C15: Con garantía hipotecaria | D15: No
C16: Tipo de inmueble (de la garantía) | D16: N/A
C17: Valor del avalúo comercial de la garantía | D17: 0

Sheet Variables (hidden)
B2: LISTA DESPLEGABLE | F2: TARIFAS | I2: FACTOR MENSUAL PARA COBRO DE SEGUROS
F3: TARIFARIO A partir del 05 de Junio de 2023 | G3: IVA INCLUIDO | I3: Hipotecarios: | L3: VALOR DEL SEGURO
B4: Rango de edad del deudor | D4: 23600 | F4: Simulación de Crédito Oficinas Tradicionales / Banca Preferente | G4: =D4*1.19 -> 28084 | I4: Edad | J4: Con garantía hipotecaria | K4: Sin garantía hipotecaria | L4: Con garantía hipotecaria | M4: Sin garantía hipotecaria
B5: Entre 18 y 70 años | D5: 35150 | F5: Simulación de Crédito OCI (Oficinas de Crédito al Instante) | G5: =D5*1.19 -> 41828.5 | I5: Entre 18 y 51 años | J5: 0.00044 | K5: 0.000695 | L5: 0 | M5: 0
B6: 71 años en adelante | D6: 102300 | F6: Estudio de Crédito Compra de Cartera | G6: 121737 | I6: Entre 51 y 60 años | J6: 0.00044 | K6: 0.000899 | L6: 0 | M6: 0
D7: 112500 | F7: Estudio de Crédito Libre Inversión | G7: 133875 | I7: Entre 61 y 70 años | J7: 0.00044 | K7: 0.000928 | L7: 0 | M7: 0
B8: Tipo de Estudio de Crédito | I8: Entre 71 y 75 años | J8: 0.00044 | K8: 0.002714 | L8: 0 | M8: 0
B9: Libre Inversión | F9: Otros servicios | I9: Entre 76 y 80 años | J9: 0.00044 | K9: 0.006518 | L9: 0 | M9: 0
B10: Compra de cartera | D10: 13300 | F10: Certificaciones | G10: =D10*1.19 -> 15827 | I10: 81 años en adelante | J10: 0.00044 | K10: 0.010725 | L10: 0 | M10: 0
D11: 27450 | F11: Crédito educativo Desembolso con Cheque | G11: =D11*1.19 -> 32665.5
D12: 30300 | F12: Crédito educativo Desembolso con Transferencia | G12: 36057 | I12: Consumo, educativo, libranza: | L12: VALOR DEL SEGURO
B13: Tipo de Desembolso | D13: 36900 | F13: Desembolso con Cheque (cada uno) | G13: 43911 | I13: Edad | J13: Con garantía hipotecaria | K13: Sin garantía hipotecaria | L13: Con garantía hipotecaria | M13: Sin garantía hipotecaria
B14: Cheque de Gerencia | D14: 33200 | F14: Desembolso con Transferencia (cada una) | G14: 39508 | I14: Entre 18 y 51 años | J14: 0.00044 | K14: 0.000695 | L14: =Formulario!$D$8*Variables!$J14 -> 8800 | M14: =Formulario!$D$8*Variables!$K14 -> 13900
B15: Transferencia bancaria | I15: Entre 51 y 60 años | J15: 0.00044 | K15: 0.000899 | L15: =Formulario!$D$8*Variables!$J15 -> 8800 | M15: =Formulario!$D$8*Variables!$K15 -> 17980
I16: Entre 61 y 70 años | J16: 0.00044 | K16: 0.000928 | L16: =Formulario!$D$8*Variables!$J16 -> 8800 | M16: =Formulario!$D$8*Variables!$K16 -> 18560
I17: Entre 71 y 75 años | J17: 0.00044 | K17: 0.002714 | L17: =Formulario!$D$8*Variables!$J17 -> 8800 | M17: =Formulario!$D$8*Variables!$K17 -> 54280
B18: Tipo de Oficina de Solicitud | I18: Entre 76 y 80 años | J18: 0.00044 | K18: 0.006518 | L18: =Formulario!$D$8*Variables!$J18 -> 8800 | M18: =Formulario!$D$8*Variables!$K18 -> 130360
B19: Of. Tradicional/Preferente | I19: 81 años en adelante | J19: 0.00044 | K19: 0.010725 | L19: =Formulario!$D$8*Variables!$J19 -> 8800 | M19: =Formulario!$D$8*Variables!$K19 -> 214500
B20: Oficina de Crédito al Instante | L20: VALOR DEL SEGURO
B21: Internet /Exento | L21: Con garantía hipotecaria | M21: Sin garantía hipotecaria
I22: Incendio y terremoto | J22: 0.00015 | K22: 0 | L22: =VLOOKUP(Formulario!$D$16,$B$36:$D$46,3,0)*$J$22 -> 0 | M22: 0
B23: Con garantía hipotecaria | I23: Aplica si tiene garantía hipotecaria
B24: Si
B25: No
B27: Edad
B28: Entre 18 y 51 años
B29: Entre 51 y 60 años
B30: Entre 61 y 70 años
B31: Entre 71 y 75 años
B32: Entre 76 y 80 años
B33: 81 años en adelante
B35: Tipo de inmueble | C35: % Destructible | D35: Base de liquidación
B36: Casa | C36: 0.85 | D36: =IF(Formulario!$D$15="No",0,Formulario!$D$17*Variables!$C36) -> 0
B37: Apartamento | C37: 0.95 | D37: =IF(Formulario!$D$15="No",0,Formulario!$D$17*Variables!$C37) -> 0
B38: Consultorio | C38: 0.95 | D38: =IF(Formulario!$D$15="No",0,Formulario!$D$17*Variables!$C38) -> 0
B39: Oficina | C39: 0.95 | D39: =IF(Formulario!$D$15="No",0,Formulario!$D$17*Variables!$C39) -> 0
B40: Bodega | C40: 0.85 | D40: =IF(Formulario!$D$15="No",0,Formulario!$D$17*Variables!$C40) -> 0
B41: Local | C41: 0.95 | D41: =IF(Formulario!$D$15="No",0,Formulario!$D$17*Variables!$C41) -> 0
B42: Lote | C42: 0 | D42: =IF(Formulario!$D$15="No",0,Formulario!$D$17*Variables!$C42) -> 0
B43: Deposito | C43: 0.85 | D43: =IF(Formulario!$D$15="No",0,Formulario!$D$17*Variables!$C43) -> 0
B44: Garaje | C44: 0.85 | D44: =IF(Formulario!$D$15="No",0,Formulario!$D$17*Variables!$C44) -> 0
B45: Otro | C45: 0.95 | D45: =IF(Formulario!$D$15="No",0,Formulario!$D$17*Variables!$C45) -> 0
B46: N/A | C46: 0 | D46: =IF(Formulario!$D$15="No",0,Formulario!$D$17*Variables!$C46) -> 0

Sheet Simulador (hidden)
T1: TASA MENSUAL EN % POR RANGOS DE EDAD PARA COBRO DE SEGURO DE VIDA | U1: factor | V1: div 100
T2: De 18 a 50 años | U2: 0.0695 | V2: =+U2/100 -> 0.000695
T3: De 51 a 60 años | U3: 0.0899 | V3: =+U3/100 -> 0.000899
T4: De 61 a 70 años | U4: 0.0928 | V4: 0.000928
B5: SIMULACIÓN VALOR TOTAL UNIFICADO DEL CRÉDITO DEL CRÉDITO EDUCATIVO | T5: De 71 a 75 años | U5: 0.2714 | V5: 0.002714
T6: De 76 a 80 años | U6: 0.6518 | V6: 0.006518
C7: =TODAY() -> 2025-10-17 | T7: Desde 81 años | U7: 1.0725 | V7: 0.010725
B8: Monto del Crédito | C8: =Formulario!$D$8 -> 20000000
B9: Plazo (meses) | C9: =Formulario!$D$9 -> 48 | Q9: Certificaciones | R9: =+[1]Tarifas!$M$298 -> 15600 | T9: TARIFAS PRODUCTOS Y SERVICIOS BANCARIOS | V9: A partir del 04 de SEPTIEMBRE de 2025
B10: Tasa Efectiva Anual | C10: =Formulario!$D$10 -> 0.14 | S10: Estudio de Crédito | T10: Estudio de Crédito Compra de Cartera | V10: =+[1]Tarifas!$M$294 -> 180000
B11: Valor 1ra. Cuota sin Seguros | C11: =$M$22 -> 538284.9292 | T11: Estudio de Crédito Libre Inversión | V11: =+[1]Tarifas!$M$295 -> 181000
B12: Rango Edad Deudor | C12: =Formulario!$D$11 -> De 18 a 50 años | S12: Tipo de Desembolso | T12: Crédito educativo Desembolso con Cheque | V12: =+[1]Tarifas!$M$299 -> 31950
B13: Tipo Estudio de Crédito | C13: =Formulario!$D$12 -> Libre Inversión | T13: Crédito educativo Desembolso con Transferencia | V13: =+[1]Tarifas!$M$300 -> 35250
B14: Tipo Desembolso | C14: =Formulario!$D$13 -> Transferencia bancaria | S14: Tipo canal | T14: Simulación de Crédito Oficinas Tradicionales / Banca Preferente | V14: =+[1]Tarifas!$M$292 -> 31600
B15: Tipo de Canal de Solicitud | C15: =Formulario!$D$14 -> Of. Tradicional/Preferente | T15: Simulación de Crédito OCI (Oficinas de Crédito al Instante) | V15: =+[1]Tarifas!$M$293 -> 40900
B16: Con garantía hipotecaria | C16: =Formulario!$D$15 -> No | J16: TNM | K16: =NOMINAL(Formulario!$D$10,12)/12 -> 0.01097885195 | W16: VTUA% | X16: =IRR(X21:X321) -> 0.01228023337
B17: Tipo de inmueble (de la garantía) | C17: =Formulario!$D$16 -> N/A
B18: Valor del avalúo comercial de la garantía | C18: =Formulario!$D$17 -> 0 | I18: FLUJO DEL CRÉDITO | P18: FLUJO DEL CLIENTE
B20: VALOR TOTAL UNIFICADO | I20: Periodo | J20: Capital | K20: Intereses | L20: Abono a Capital | M20: Cuota | N20: Saldo | P20: Desembolso | Q20: Cuota | R20: Certificaciones | S20: Estudio de Crédito | T20: Tipo de Desembolso | U20: Tipo de canal | V20: Seguro de vida | W20: Seguro de incendio y terremoto | X20: Saldo cliente
B21: Valor Total Unificado % | C21: =(1+X16)^12-1 -> 0.1577347749 | I21: 0 | N21: =$C$8 -> 20000000 | P21: =N21 -> 20000000 | Q21: 0 | R21: =-R9 -> -15600 | S21: =-IF(C13="Libre Inversión",$V$11,V10) -> -181000 | T21: =-IF(C14="Cheque de Gerencia",$V$12,V13) -> -35250 | U21: =-IF(C15="Of. Tradicional/Preferente",$V$14,$V$15) -> -31600 | V21: 0 | W21: 0 | X21: =SUM(P21:W21) -> 19736550
B22: Valor Total Unificado $ | C22: =SUM(K22:K321)-SUM(R21:W321) -> 6470672.091 | I22: 1 | J22: =N21 -> 20000000 | K22: =J22*$K$16 -> 219577.039 | L22: =IF(I22<>0,M22-K22,0) -> 318707.8902 | M22: =IF(I22<>0,PMT($K$16,Formulario!$D$9,-Simulador!$N$21),0) -> 538284.9292 | N22: =J22-L22 -> 19681292.11 | P22: 0 | Q22: =IF(M22=0,0,-M22) -> -538284.9292 | R22: 0 | S22: 0 | T22: 0 | U22: 0 | V22: =-(VLOOKUP($C$12,$T$1:$V$7,3,0)*N21) -> -13900 | W22: =IF(I22<>0,IF($C$16="No",0,-Variables!$L$22),0) -> 0 | X22: -552184.9292
B23: Intereses | C23: =SUM(K22:K321) -> 5837676.6 | I23: =IF(AND(I22+1<=Formulario!$D$9,I22<>0),I22+1,0) -> 2 | J23: =IF(I23<>0,N22,0) -> 19681292.11 | K23: =J23*$K$16 -> 216077.9923 | L23: =IF(I23<>0,M23-K23,0) -> 322206.9369 | M23: =IF(I23<>0,PMT($K$16,Formulario!$D$9,-Simulador!$N$21),0) -> 538284.9292 | N23: =J23-L23 -> 19359085.17 | P23: 0 | Q23: =IF(M23=0,0,-M23) -> -538284.9292 | R23: 0 | S23: 0 | T23: 0 | U23: 0 | V23: =-(VLOOKUP($C$12,$T$1:$V$7,3,0)*N22) -> -13678.49802 | W23: =IF(I23<>0,IF($C$16="No",0,-Variables!$L$22),0) -> 0 | X23: -551963.4272
B24: Certificaciones | C24: =-R21 -> 15600 | I24: =IF(AND(I23+1<=Formulario!$D$9,I23<>0),I23+1,0) -> 3 | J24: =IF(I24<>0,N23,0) -> 19359085.17 | K24: 212540.53 | L24: 325744.3992 | M24: =IF(I24<>0,PMT($K$16,Formulario!$D$9,-Simulador!$N$21),0) -> 538284.9292 | N24: 19033340.77 | P24: 0 | Q24: -538284.9292 | R24: 0 | S24: 0 | T24: 0 | U24: 0 | V24: -13454.5642 | W24: =IF(I24<>0,IF($C$16="No",0,-Variables!$L$22),0) -> 0 | X24: -551739.4934
B25: Estudio de Crédito | C25: =-S21 -> 181000 | I25: =IF(AND(I24+1<=Formulario!$D$9,I24<>0),I24+1,0) -> 4 | J25: 19033340.77 | K25: 208964.2305 | L25: 329320.6987 | M25: =IF(I25<>0,PMT($K$16,Formulario!$D$9,-Simulador!$N$21),0) -> 538284.9292 | N25: 18704020.08 | P25: 0 | Q25: -538284.9292 | R25: 0 | S25: 0 | T25: 0 | U25: 0 | V25: -13228.17184 | W25: =IF(I25<>0,IF($C$16="No",0,-Variables!$L$22),0) -> 0 | X25: -551513.101
B26: Tipo de Desembolso | C26: =-T21 -> 35250 | I26: =IF(AND(I25+1<=Formulario!$D$9,I25<>0),I25+1,0) -> 5 | J26: 18704020.08 | K26: 205348.6673 | L26: 332936.2619 | M26: =IF(I26<>0,PMT($K$16,Formulario!$D$9,-Simulador!$N$21),0) -> 538284.9292 | N26: 18371083.81 | P26: 0 | Q26: -538284.9292 | R26: 0 | S26: 0 | T26: 0 | U26: 0 | V26: -12999.29395 | W26: =IF(I26<>0,IF($C$16="No",0,-Variables!$L$22),0) -> 0 | X26: -551284.2231
B27: Canal de solicitud | C27: =-U21 -> 31600 | I27: =IF(AND(I26+1<=Formulario!$D$9,I26<>0),I26+1,0) -> 6 | J27: 18371083.81 | K27: 201693.4093 | L27: 336591.5198 | M27: =IF(I27<>0,PMT($K$16,Formulario!$D$9,-Simulador!$N$21),0) -> 538284.9292 | N27: 18034492.29 | P27: 0 | Q27: -538284.9292 | R27: 0 | S27: 0 | T27: 0 | U27: 0 | V27: -12767.90325 | W27: =IF(I27<>0,IF($C$16="No",0,-Variables!$L$22),0) -> 0 | X27: -551052.8324
B28: Seguro de vida del deudor | C28: =-SUM(V21:V321) -> 369545.4912 | I28: =IF(AND(I27+1<=Formulario!$D$9,I27<>0),I27+1,0) -> 7 | J28: 18034492.29 | K28: 197998.0209 | L28: 340286.9083 | M28: =IF(I28<>0,PMT($K$16,Formulario!$D$9,-Simulador!$N$21),0) -> 538284.9292 | N28: 17694205.39 | P28: 0 | Q28: -538284.9292 | R28: 0 | S28: 0 | T28: 0 | U28: 0 | V28: -12533.97214 | W28: =IF(I28<>0,IF($C$16="No",0,-Variables!$L$22),0) -> 0 | X28: -550818.9013
B29: Seguro de Incendio y Terremoto | C29: =-SUM(W21:W321) -> 0 | I29: =IF(AND(I28+1<=Formulario!$D$9,I28<>0),I28+1,0) -> 8 | J29: 17694205.39 | K29: 194262.0613 | L29: 344022.8679 | M29: =IF(I29<>0,PMT($K$16,Formulario!$D$9,-Simulador!$N$21),0) -> 538284.9292 | N29: 17350182.52 | P29: 0 | Q29: -538284.9292 | R29: 0 | S29: 0 | T29: 0 | U29: 0 | V29: -12297.47274 | W29: =IF(I29<>0,IF($C$16="No",0,-Variables!$L$22),0) -> 0 | X29: -550582.4019
I30: =IF(AND(I29+1<=Formulario!$D$9,I29<>0),I29+1,0) -> 9 | J30: 17350182.52 | K30: 190485.0852 | L30: 347799.844 | M30: =IF(I30<>0,PMT($K$16,Formulario!$D$9,-Simulador!$N$21),0) -> 538284.9292 | N30: 17002382.67 | P30: 0 | Q30: -538284.9292 | R30: 0 | S30: 0 | T30: 0 | U30: 0 | V30: -12058.37685 | W30: =IF(I30<>0,IF($C$16="No",0,-Variables!$L$22),0) -> 0 | X30: -550343.306
I31: =IF(AND(I30+1<=Formulario!$D$9,I30<>0),I30+1,0) -> 10 | J31: 17002382.67 | K31: 186666.6422 | L31: 351618.287 | M31: =IF(I31<>0,PMT($K$16,Formulario!$D$9,-Simulador!$N$21),0) -> 538284.9292 | N31: 16650764.39 | P31: 0 | Q31: -538284.9292 | R31: 0 | S31: 0 | T31: 0 | U31: 0 | V31: -11816.65596 | W31: =IF(I31<>0,IF($C$16="No",0,-Variables!$L$22),0) -> 0 | X31: -550101.5851
B32: Nota: | I32: =IF(AND(I31+1<=Formulario!$D$9,I31<>0),I31+1,0) -> 11 | J32: 16650764.39 | K32: 182806.2771 | L32: 355478.6521 | M32: =IF(I32<>0,PMT($K$16,Formulario!$D$9,-Simulador!$N$21),0) -> 538284.9292 | N32: 16295285.73 | P32: 0 | Q32: -538284.9292 | R32: 0 | S32: 0 | T32: 0 | U32: 0 | V32: -11572.28125 | W32: =IF(I32<>0,IF($C$16="No",0,-Variables!$L$22),0) -> 0 | X32: -549857.2104
B33: El Valor Total Unificado corresponde a una proyección de los cobros inherentes o asociados al crédito simulado. Los valores aquí presentados resultan de una proyección por lo tanto no necesariamente corresponden a los valores que va a pagar con su producto. | I33: =IF(AND(I32+1<=Formulario!$D$9,I32<>0),I32+1,0) -> 12 | J33: 16295285.73 | K33: 178903.5296 | L33: 359381.3996 | M33: =IF(I33<>0,PMT($K$16,Formulario!$D$9,-Simulador!$N$21),0) -> 538284.9292 | N33: 15935904.33 | P33: 0 | Q33: -538284.9292 | R33: 0 | S33: 0 | T33: 0 | U33: 0 | V33: -11325.22359 | W33: =IF(I33<>0,IF($C$16="No",0,-Variables!$L$22),0) -> 0 | X33: -549610.1528
I34: =IF(AND(I33+1<=Formulario!$D$9,I33<>0),I33+1,0) -> 13 | J34: 15935904.33 | K34: 174957.9344 | L34: 363326.9948 | M34: =IF(I34<>0,PMT($K$16,Formulario!$D$9,-Simulador!$N$21),0) -> 538284.9292 | N34: 15572577.34 | P34: 0 | Q34: -538284.9292 | R34: 0 | S34: 0 | T34: 0 | U34: 0 | V34: -11075.45351 | W34: =IF(I34<>0,IF($C$16="No",0,-Variables!$L$22),0) -> 0 | X34: -549360.3827
I35: =IF(AND(I34+1<=Formulario!$D$9,I34<>0),I34+1,0) -> 14 | J35: 15572577.34 | K35: 170969.0211 | L35: 367315.9081 | M35: =IF(I35<>0,PMT($K$16,Formulario!$D$9,-Simulador!$N$21),0) -> 538284.9292 | N35: 15205261.43 | P35: 0 | Q35: -538284.9292 | R35: 0 | S35: 0 | T35: 0 | U35: 0 | V35: -10822.94125 | W35: =IF(I35<>0,IF($C$16="No",0,-Variables!$L$22),0) -> 0 | X35: -549107.8704
I36: =IF(AND(I35+1<=Formulario!$D$9,I35<>0),I35+1,0) -> 15 | J36: 15205261.43 | K36: 166936.3141 | L36: 371348.6151 | M36: =IF(I36<>0,PMT($K$16,Formulario!$D$9,-Simulador!$N$21),0) -> 538284.9292 | N36: 14833912.82 | P36: 0 | Q36: -538284.9292 | R36: 0 | S36: 0 | T36: 0 | U36: 0 | V36: -10567.65669 | W36: =IF(I36<>0,IF($C$16="No",0,-Variables!$L$22),0) -> 0 | X36: -548852.5859
I37: =IF(AND(I36+1<=Formulario!$D$9,I36<>0),I36+1,0) -> 16 | J37: 14833912.82 | K37: 162859.3327 | L37: 375425.5965 | M37: =IF(I37<>0,PMT($K$16,Formulario!$D$9,-Simulador!$N$21),0) -> 538284.9292 | N37: 14458487.22 | P37: 0 | Q37: -538284.9292 | R37: 0 | S37: 0 | T37: 0 | U37: 0 | V37: -10309.56941 | W37: =IF(I37<>0,IF($C$16="No",0,-Variables!$L$22),0) -> 0 | X37: -548594.4986
I38: =IF(AND(I37+1<=Formulario!$D$9,I37<>0),I37+1,0) -> 17 | J38: 14458487.22 | K38: 158737.5906 | L38: 379547.3386 | M38: =IF(I38<>0,PMT($K$16,Formulario!$D$9,-Simulador!$N$21),0) -> 538284.9292 | N38: 14078939.88 | P38: 0 | Q38: -538284.9292 | R38: 0 | S38: 0 | T38: 0 | U38: 0 | V38: -10048.64862 | W38: =IF(I38<>0,IF($C$16="No",0,-Variables!$L$22),0) -> 0 | X38: -548333.5778
I39: =IF(AND(I38+1<=Formulario!$D$9,I38<>0),I38+1,0) -> 18 | J39: 14078939.88 | K39: 154570.5966 | L39: 383714.3326 | M39: =IF(I39<>0,PMT($K$16,Formulario!$D$9,-Simulador!$N$21),0) -> 538284.9292 | N39: 13695225.55 | P39: 0 | Q39: -538284.9292 | R39: 0 | S39: 0 | T39: 0 | U39: 0 | V39: -9784.863218 | W39: =IF(I39<>0,IF($C$16="No",0,-Variables!$L$22),0) -> 0 | X39: -548069.7924
I40: =IF(AND(I39+1<=Formulario!$D$9,I39<>0),I39+1,0) -> 19 | J40: 13695225.55 | K40: 150357.8537 | L40: 387927.0754 | M40: =IF(I40<>0,PMT($K$16,Formulario!$D$9,-Simulador!$N$21),0) -> 538284.9292 | N40: 13307298.47 | P40: 0 | Q40: -538284.9292 | R40: 0 | S40: 0 | T40: 0 | U40: 0 | V40: -9518.181756 | W40: =IF(I40<>0,IF($C$16="No",0,-Variables!$L$22),0) -> 0 | X40: -547803.1109
I41: =IF(AND(I40+1<=Formulario!$D$9,I40<>0),I40+1,0) -> 20 | J41: 13307298.47 | K41: 146098.8598 | L41: 392186.0694 | M41: =IF(I41<>0,PMT($K$16,Formulario!$D$9,-Simulador!$N$21),0) -> 538284.9292 | N41: 12915112.4 | P41: 0 | Q41: -538284.9292 | R41: 0 | S41: 0 | T41: 0 | U41: 0 | V41: -9248.572439 | W41: =IF(I41<>0,IF($C$16="No",0,-Variables!$L$22),0) -> 0 | X41: -547533.5016
I42: =IF(AND(I41+1<=Formulario!$D$9,I41<>0),I41+1,0) -> 21 | J42: 12915112.4 | K42: 141793.107 | L42: 396491.8222 | M42: =IF(I42<>0,PMT($K$16,Formulario!$D$9,-Simulador!$N$21),0) -> 538284.9292 | N42: 12518620.58 | P42: 0 | Q42: -538284.9292 | R42: 0 | S42: 0 | T42: 0 | U42: 0 | V42: -8976.003121 | W42: =IF(I42<>0,IF($C$16="No",0,-Variables!$L$22),0) -> 0 | X42: -547260.9323
I43: =IF(AND(I42+1<=Formulario!$D$9,I42<>0),I42+1,0) -> 22 | J43: 12518620.58 | K43: 137440.082 | L43: 400844.8472 | M43: =IF(I43<>0,PMT($K$16,Formulario!$D$9,-Simulador!$N$21),0) -> 538284.9292 | N43: 12117775.73 | P43: 0 | Q43: -538284.9292 | R43: 0 | S43: 0 | T43: 0 | U43: 0 | V43: -8700.441304 | W43: =IF(I43<>0,IF($C$16="No",0,-Variables!$L$22),0) -> 0 | X43: -546985.3705
I44: =IF(AND(I43+1<=Formulario!$D$9,I43<>0),I43+1,0) -> 23 | J44: 12117775.73 | K44: 133039.2658 | L44: 405245.6634 | M44: =IF(I44<>0,PMT($K$16,Formulario!$D$9,-Simulador!$N$21),0) -> 538284.9292 | N44: 11712530.07 | P44: 0 | Q44: -538284.9292 | R44: 0 | S44: 0 | T44: 0 | U44: 0 | V44: -8421.854136 | W44: =IF(I44<>0,IF($C$16="No",0,-Variables!$L$22),0) -> 0 | X44: -546706.7833
I45: =IF(AND(I44+1<=Formulario!$D$9,I44<>0),I44+1,0) -> 24 | J45: 11712530.07 | K45: 128590.1336 | L45: 409694.7956 | M45: =IF(I45<>0,PMT($K$16,Formulario!$D$9,-Simulador!$N$21),0) -> 538284.9292 | N45: 11302835.28 | P45: 0 | Q45: -538284.9292 | R45: 0 | S45: 0 | T45: 0 | U45: 0 | V45: -8140.2084 | W45: =IF(I45<>0,IF($C$16="No",0,-Variables!$L$22),0) -> 0 | X45: -546425.1376
I46: =IF(AND(I45+1<=Formulario!$D$9,I45<>0),I45+1,0) -> 25 | J46: 11302835.28 | K46: 124092.1551 | L46: 414192.7741 | M46: =IF(I46<>0,PMT($K$16,Formulario!$D$9,-Simulador!$N$21),0) -> 538284.9292 | N46: 10888642.5 | P46: 0 | Q46: -538284.9292 | R46: 0 | S46: 0 | T46: 0 | U46: 0 | V46: -7855.470517 | W46: =IF(I46<>0,IF($C$16="No",0,-Variables!$L$22),0) -> 0 | X46: -546140.3997
I47: =IF(AND(I46+1<=Formulario!$D$9,I46<>0),I46+1,0) -> 26 | J47: 10888642.5 | K47: 119544.794 | L47: 418740.1352 | M47: =IF(I47<>0,PMT($K$16,Formulario!$D$9,-Simulador!$N$21),0) -> 538284.9292 | N47: 10469902.37 | P47: 0 | Q47: -538284.9292 | R47: 0 | S47: 0 | T47: 0 | U47: 0 | V47: -7567.606539 | W47: =IF(I47<>0,IF($C$16="No",0,-Variables!$L$22),0) -> 0 | X47: -545852.5357
I48: =IF(AND(I47+1<=Formulario!$D$9,I47<>0),I47+1,0) -> 27 | J48: 10469902.37 | K48: 114947.508 | L48: 423337.4212 | M48: =IF(I48<>0,PMT($K$16,Formulario!$D$9,-Simulador!$N$21),0) -> 538284.9292 | N48: 10046564.95 | P48: 0 | Q48: -538284.9292 | R48: 0 | S48: 0 | T48: 0 | U48: 0 | V48: -7276.582145 | W48: =IF(I48<>0,IF($C$16="No",0,-Variables!$L$22),0) -> 0 | X48: -545561.5113
I49: =IF(AND(I48+1<=Formulario!$D$9,I48<>0),I48+1,0) -> 28 | J49: 10046564.95 | K49: 110299.7491 | L49: 427985.18 | M49: =IF(I49<>0,PMT($K$16,Formulario!$D$9,-Simulador!$N$21),0) -> 538284.9292 | N49: 9618579.765 | P49: 0 | Q49: -538284.9292 | R49: 0 | S49: 0 | T49: 0 | U49: 0 | V49: -6982.362637 | W49: =IF(I49<>0,IF($C$16="No",0,-Variables!$L$22),0) -> 0 | X49: -545267.2918
I50: =IF(AND(I49+1<=Formulario!$D$9,I49<>0),I49+1,0) -> 29 | J50: 9618579.765 | K50: 105600.9632 | L50: 432683.966 | M50: =IF(I50<>0,PMT($K$16,Formulario!$D$9,-Simulador!$N$21),0) -> 538284.9292 | N50: 9185895.799 | P50: 0 | Q50: -538284.9292 | R50: 0 | S50: 0 | T50: 0 | U50: 0 | V50: -6684.912937 | W50: =IF(I50<>0,IF($C$16="No",0,-Variables!$L$22),0) -> 0 | X50: -544969.8421
I51: =IF(AND(I50+1<=Formulario!$D$9,I50<>0),I50+1,0) -> 30 | J51: 9185895.799 | K51: 100850.59 | L51: 437434.3392 | M51: =IF(I51<>0,PMT($K$16,Formulario!$D$9,-Simulador!$N$21),0) -> 538284.9292 | N51: 8748461.46 | P51: 0 | Q51: -538284.9292 | R51: 0 | S51: 0 | T51: 0 | U51: 0 | V51: -6384.197581 | W51: =IF(I51<>0,IF($C$16="No",0,-Variables!$L$22),0) -> 0 | X51: -544669.1268
I52: =IF(AND(I51+1<=Formulario!$D$9,I51<>0),I51+1,0) -> 31 | J52: 8748461.46 | K52: 96048.06316 | L52: 442236.866 | M52: =IF(I52<>0,PMT($K$16,Formulario!$D$9,-Simulador!$N$21),0) -> 538284.9292 | N52: 8306224.594 | P52: 0 | Q52: -538284.9292 | R52: 0 | S52: 0 | T52: 0 | U52: 0 | V52: -6080.180715 | W52: =IF(I52<>0,IF($C$16="No",0,-Variables!$L$22),0) -> 0 | X52: -544365.1099
I53: =IF(AND(I52+1<=Formulario!$D$9,I52<>0),I52+1,0) -> 32 | J53: 8306224.594 | K53: 91192.81008 | L53: 447092.1191 | M53: =IF(I53<>0,PMT($K$16,Formulario!$D$9,-Simulador!$N$21),0) -> 538284.9292 | N53: 7859132.475 | P53: 0 | Q53: -538284.9292 | R53: 0 | S53: 0 | T53: 0 | U53: 0 | V53: -5772.826093 | W53: =IF(I53<>0,IF($C$16="No",0,-Variables!$L$22),0) -> 0 | X53: -544057.7553
I54: =IF(AND(I53+1<=Formulario!$D$9,I53<>0),I53+1,0) -> 33 | J54: 7859132.475 | K54: 86284.2519 | L54: 452000.6773 | M54: =IF(I54<>0,PMT($K$16,Formulario!$D$9,-Simulador!$N$21),0) -> 538284.9292 | N54: 7407131.798 | P54: 0 | Q54: -538284.9292 | R54: 0 | S54: 0 | T54: 0 | U54: 0 | V54: -5462.09707 | W54: =IF(I54<>0,IF($C$16="No",0,-Variables!$L$22),0) -> 0 | X54: -543747.0262
I55: =IF(AND(I54+1<=Formulario!$D$9,I54<>0),I54+1,0) -> 34 | J55: 7407131.798 | K55: 81321.80338 | L55: 456963.1258 | M55: =IF(I55<>0,PMT($K$16,Formulario!$D$9,-Simulador!$N$21),0) -> 538284.9292 | N55: 6950168.672 | P55: 0 | Q55: -538284.9292 | R55: 0 | S55: 0 | T55: 0 | U55: 0 | V55: -5147.956599 | W55: =IF(I55<>0,IF($C$16="No",0,-Variables!$L$22),0) -> 0 | X55: -543432.8858
I56: =IF(AND(I55+1<=Formulario!$D$9,I55<>0),I55+1,0) -> 35 | J56: 6950168.672 | K56: 76304.87288 | L56: 461980.0563 | M56: =IF(I56<>0,PMT($K$16,Formulario!$D$9,-Simulador!$N$21),0) -> 538284.9292 | N56: 6488188.616 | P56: 0 | Q56: -538284.9292 | R56: 0 | S56: 0 | T56: 0 | U56: 0 | V56: -4830.367227 | W56: =IF(I56<>0,IF($C$16="No",0,-Variables!$L$22),0) -> 0 | X56: -543115.2964
I57: =IF(AND(I56+1<=Formulario!$D$9,I56<>0),I56+1,0) -> 36 | J57: 6488188.616 | K57: 71232.86224 | L57: 467052.0669 | M57: =IF(I57<>0,PMT($K$16,Formulario!$D$9,-Simulador!$N$21),0) -> 538284.9292 | N57: 6021136.549 | P57: 0 | Q57: -538284.9292 | R57: 0 | S57: 0 | T57: 0 | U57: 0 | V57: -4509.291088 | W57: =IF(I57<>0,IF($C$16="No",0,-Variables!$L$22),0) -> 0 | X57: -542794.2203
I58: =IF(AND(I57+1<=Formulario!$D$9,I57<>0),I57+1,0) -> 37 | J58: 6021136.549 | K58: 66105.16674 | L58: 472179.7624 | M58: =IF(I58<>0,PMT($K$16,Formulario!$D$9,-Simulador!$N$21),0) -> 538284.9292 | N58: 5548956.786 | P58: 0 | Q58: -538284.9292 | R58: 0 | S58: 0 | T58: 0 | U58: 0 | V58: -4184.689901 | W58: =IF(I58<>0,IF($C$16="No",0,-Variables!$L$22),0) -> 0 | X58: -542469.6191
I59: =IF(AND(I58+1<=Formulario!$D$9,I58<>0),I58+1,0) -> 38 | J59: 5548956.786 | K59: 60921.17503 | L59: 477363.7541 | M59: =IF(I59<>0,PMT($K$16,Formulario!$D$9,-Simulador!$N$21),0) -> 538284.9292 | N59: 5071593.032 | P59: 0 | Q59: -538284.9292 | R59: 0 | S59: 0 | T59: 0 | U59: 0 | V59: -3856.524966 | W59: =IF(I59<>0,IF($C$16="No",0,-Variables!$L$22),0) -> 0 | X59: -542141.4541
I60: =IF(AND(I59+1<=Formulario!$D$9,I59<>0),I59+1,0) -> 39 | J60: 5071593.032 | K60: 55680.26905 | L60: 482604.6601 | M60: =IF(I60<>0,PMT($K$16,Formulario!$D$9,-Simulador!$N$21),0) -> 538284.9292 | N60: 4588988.372 | P60: 0 | Q60: -538284.9292 | R60: 0 | S60: 0 | T60: 0 | U60: 0 | V60: -3524.757157 | W60: =IF(I60<>0,IF($C$16="No",0,-Variables!$L$22),0) -> 0 | X60: -541809.6863
I61: =IF(AND(I60+1<=Formulario!$D$9,I60<>0),I60+1,0) -> 40 | J61: 4588988.372 | K61: 50381.82394 | L61: 487903.1052 | M61: =IF(I61<>0,PMT($K$16,Formulario!$D$9,-Simulador!$N$21),0) -> 538284.9292 | N61: 4101085.267 | P61: 0 | Q61: -538284.9292 | R61: 0 | S61: 0 | T61: 0 | U61: 0 | V61: -3189.346919 | W61: =IF(I61<>0,IF($C$16="No",0,-Variables!$L$22),0) -> 0 | X61: -541474.2761
I62: =IF(AND(I61+1<=Formulario!$D$9,I61<>0),I61+1,0) -> 41 | J62: 4101085.267 | K62: 45025.20798 | L62: 493259.7212 | M62: =IF(I62<>0,PMT($K$16,Formulario!$D$9,-Simulador!$N$21),0) -> 538284.9292 | N62: 3607825.546 | P62: 0 | Q62: -538284.9292 | R62: 0 | S62: 0 | T62: 0 | U62: 0 | V62: -2850.25426 | W62: =IF(I62<>0,IF($C$16="No",0,-Variables!$L$22),0) -> 0 | X62: -541135.1834
I63: =IF(AND(I62+1<=Formulario!$D$9,I62<>0),I62+1,0) -> 42 | J63: 3607825.546 | K63: 39609.78253 | L63: 498675.1466 | M63: =IF(I63<>0,PMT($K$16,Formulario!$D$9,-Simulador!$N$21),0) -> 538284.9292 | N63: 3109150.399 | P63: 0 | Q63: -538284.9292 | R63: 0 | S63: 0 | T63: 0 | U63: 0 | V63: -2507.438754 | W63: =IF(I63<>0,IF($C$16="No",0,-Variables!$L$22),0) -> 0 | X63: -540792.3679
I64: =IF(AND(I63+1<=Formulario!$D$9,I63<>0),I63+1,0) -> 43 | J64: 3109150.399 | K64: 34134.90192 | L64: 504150.0273 | M64: =IF(I64<>0,PMT($K$16,Formulario!$D$9,-Simulador!$N$21),0) -> 538284.9292 | N64: 2605000.372 | P64: 0 | Q64: -538284.9292 | R64: 0 | S64: 0 | T64: 0 | U64: 0 | V64: -2160.859527 | W64: =IF(I64<>0,IF($C$16="No",0,-Variables!$L$22),0) -> 0 | X64: -540445.7887
I65: =IF(AND(I64+1<=Formulario!$D$9,I64<>0),I64+1,0) -> 44 | J65: 2605000.372 | K65: 28599.91341 | L65: 509685.0158 | M65: =IF(I65<>0,PMT($K$16,Formulario!$D$9,-Simulador!$N$21),0) -> 538284.9292 | N65: 2095315.356 | P65: 0 | Q65: -538284.9292 | R65: 0 | S65: 0 | T65: 0 | U65: 0 | V65: -1810.475258 | W65: =IF(I65<>0,IF($C$16="No",0,-Variables!$L$22),0) -> 0 | X65: -540095.4044
I66: =IF(AND(I65+1<=Formulario!$D$9,I65<>0),I65+1,0) -> 45 | J66: 2095315.356 | K66: 23004.15708 | L66: 515280.7721 | M66: =IF(I66<>0,PMT($K$16,Formulario!$D$9,-Simulador!$N$21),0) -> 538284.9292 | N66: 1580034.584 | P66: 0 | Q66: -538284.9292 | R66: 0 | S66: 0 | T66: 0 | U66: 0 | V66: -1456.244172 | W66: =IF(I66<>0,IF($C$16="No",0,-Variables!$L$22),0) -> 0 | X66: -539741.1733
I67: =IF(AND(I66+1<=Formulario!$D$9,I66<>0),I66+1,0) -> 46 | J67: 1580034.584 | K67: 17346.96577 | L67: 520937.9634 | M67: =IF(I67<>0,PMT($K$16,Formulario!$D$9,-Simulador!$N$21),0) -> 538284.9292 | N67: 1059096.62 | P67: 0 | Q67: -538284.9292 | R67: 0 | S67: 0 | T67: 0 | U67: 0 | V67: -1098.124036 | W67: =IF(I67<>0,IF($C$16="No",0,-Variables!$L$22),0) -> 0 | X67: -539383.0532
I68: =IF(AND(I67+1<=Formulario!$D$9,I67<>0),I67+1,0) -> 47 | J68: 1059096.62 | K68: 11627.665 | L68: 526657.2642 | M68: =IF(I68<>0,PMT($K$16,Formulario!$D$9,-Simulador!$N$21),0) -> 538284.9292 | N68: 532439.3563 | P68: 0 | Q68: -538284.9292 | R68: 0 | S68: 0 | T68: 0 | U68: 0 | V68: -736.0721512 | W68: =IF(I68<>0,IF($C$16="No",0,-Variables!$L$22),0) -> 0 | X68: -539021.0013
I69: =IF(AND(I68+1<=Formulario!$D$9,I68<>0),I68+1,0) -> 48 | J69: 532439.3563 | K69: 5845.572865 | L69: 532439.3563 | M69: =IF(I69<>0,PMT($K$16,Formulario!$D$9,-Simulador!$N$21),0) -> 538284.9292 | N69: 0 | P69: 0 | Q69: -538284.9292 | R69: 0 | S69: 0 | T69: 0 | U69: 0 | V69: -370.0453526 | W69: =IF(I69<>0,IF($C$16="No",0,-Variables!$L$22),0) -> 0 | X69: -538654.9745
I70: =IF(AND(I69+1<=Formulario!$D$9,I69<>0),I69+1,0) -> 0 | J70: 0 | K70: 0 | L70: 0 | M70: =IF(I70<>0,PMT($K$16,Formulario!$D$9,-Simulador!$N$21),0) -> 0 | N70: 0 | P70: 0 | Q70: 0 | R70: 0 | S70: 0 | T70: 0 | U70: 0 | V70: 0 | W70: =IF(I70<>0,IF($C$16="No",0,-Variables!$L$22),0) -> 0 | X70: 0
I71: =IF(AND(I70+1<=Formulario!$D$9,I70<>0),I70+1,0) -> 0 | J71: 0 | K71: 0 | L71: 0 | M71: =IF(I71<>0,PMT($K$16,Formulario!$D$9,-Simulador!$N$21),0) -> 0 | N71: 0 | P71: 0 | Q71: 0 | R71: 0 | S71: 0 | T71: 0 | U71: 0 | V71: 0 | W71: =IF(I71<>0,IF($C$16="No",0,-Variables!$L$22),0) -> 0 | X71: 0
I72: =IF(AND(I71+1<=Formulario!$D$9,I71<>0),I71+1,0) -> 0 | J72: 0 | K72: 0 | L72: 0 | M72: =IF(I72<>0,PMT($K$16,Formulario!$D$9,-Simulador!$N$21),0) -> 0 | N72: 0 | P72: 0 | Q72: 0 | R72: 0 | S72: 0 | T72: 0 | U72: 0 | V72: 0 | W72: =IF(I72<>0,IF($C$16="No",0,-Variables!$L$22),0) -> 0 | X72: 0
I73: =IF(AND(I72+1<=Formulario!$D$9,I72<>0),I72+1,0) -> 0 | J73: 0 | K73: 0 | L73: 0 | M73: =IF(I73<>0,PMT($K$16,Formulario!$D$9,-Simulador!$N$21),0) -> 0 | N73: 0 | P73: 0 | Q73: 0 | R73: 0 | S73: 0 | T73: 0 | U73: 0 | V73: 0 | W73: =IF(I73<>0,IF($C$16="No",0,-Variables!$L$22),0) -> 0 | X73: 0
I74: =IF(AND(I73+1<=Formulario!$D$9,I73<>0),I73+1,0) -> 0 | J74: 0 | K74: 0 | L74: 0 | M74: =IF(I74<>0,PMT($K$16,Formulario!$D$9,-Simulador!$N$21),0) -> 0 | N74: 0 | P74: 0 | Q74: 0 | R74: 0 | S74: 0 | T74: 0 | U74: 0 | V74: 0 | W74: =IF(I74<>0,IF($C$16="No",0,-Variables!$L$22),0) -> 0 | X74: 0
I75: =IF(AND(I74+1<=Formulario!$D$9,I74<>0),I74+1,0) -> 0 | J75: 0 | K75: 0 | L75: 0 | M75: =IF(I75<>0,PMT($K$16,Formulario!$D$9,-Simulador!$N$21),0) -> 0 | N75: 0 | P75: 0 | Q75: 0 | R75: 0 | S75: 0 | T75: 0 | U75: 0 | V75: 0 | W75: =IF(I75<>0,IF($C$16="No",0,-Variables!$L$22),0) -> 0 | X75: 0
I76: =IF(AND(I75+1<=Formulario!$D$9,I75<>0),I75+1,0) -> 0 | J76: 0 | K76: 0 | L76: 0 | M76: =IF(I76<>0,PMT($K$16,Formulario!$D$9,-Simulador!$N$21),0) -> 0 | N76: 0 | P76: 0 | Q76: 0 | R76: 0 | S76: 0 | T76: 0 | U76: 0 | V76: 0 | W76: =IF(I76<>0,IF($C$16="No",0,-Variables!$L$22),0) -> 0 | X76: 0
I77: =IF(AND(I76+1<=Formulario!$D$9,I76<>0),I76+1,0) -> 0 | J77: 0 | K77: 0 | L77: 0 | M77: =IF(I77<>0,PMT($K$16,Formulario!$D$9,-Simulador!$N$21),0) -> 0 | N77: 0 | P77: 0 | Q77: 0 | R77: 0 | S77: 0 | T77: 0 | U77: 0 | V77: 0 | W77: =IF(I77<>0,IF($C$16="No",0,-Variables!$L$22),0) -> 0 | X77: 0
I78: =IF(AND(I77+1<=Formulario!$D$9,I77<>0),I77+1,0) -> 0 | J78: 0 | K78: 0 | L78: 0 | M78: =IF(I78<>0,PMT($K$16,Formulario!$D$9,-Simulador!$N$21),0) -> 0 | N78: 0 | P78: 0 | Q78: 0 | R78: 0 | S78: 0 | T78: 0 | U78: 0 | V78: 0 | W78: =IF(I78<>0,IF($C$16="No",0,-Variables!$L$22),0) -> 0 | X78: 0
I79: =IF(AND(I78+1<=Formulario!$D$9,I78<>0),I78+1,0) -> 0 | J79: 0 | K79: 0 | L79: 0 | M79: =IF(I79<>0,PMT($K$16,Formulario!$D$9,-Simulador!$N$21),0) -> 0 | N79: 0 | P79: 0 | Q79: 0 | R79: 0 | S79: 0 | T79: 0 | U79: 0 | V79: 0 | W79: =IF(I79<>0,IF($C$16="No",0,-Variables!$L$22),0) -> 0 | X79: 0
I80: =IF(AND(I79+1<=Formulario!$D$9,I79<>0),I79+1,0) -> 0 | J80: 0 | K80: 0 | L80: 0 | M80: =IF(I80<>0,PMT($K$16,Formulario!$D$9,-Simulador!$N$21),0) -> 0 | N80: 0 | P80: 0 | Q80: 0 | R80: 0 | S80: 0 | T80: 0 | U80: 0 | V80: 0 | W80: =IF(I80<>0,IF($C$16="No",0,-Variables!$L$22),0) -> 0 | X80: 0
I81: =IF(AND(I80+1<=Formulario!$D$9,I80<>0),I80+1,0) -> 0 | J81: 0 | K81: 0 | L81: 0 | M81: =IF(I81<>0,PMT($K$16,Formulario!$D$9,-Simulador!$N$21),0) -> 0 | N81: 0 | P81: 0 | Q81: 0 | R81: 0 | S81: 0 | T81: 0 | U81: 0 | V81: 0 | W81: =IF(I81<>0,IF($C$16="No",0,-Variables!$L$22),0) -> 0 | X81: 0
I82: =IF(AND(I81+1<=Formulario!$D$9,I81<>0),I81+1,0) -> 0 | J82: 0 | K82: 0 | L82: 0 | M82: =IF(I82<>0,PMT($K$16,Formulario!$D$9,-Simulador!$N$21),0) -> 0 | N82: 0 | P82: 0 | Q82: 0 | R82: 0 | S82: 0 | T82: 0 | U82: 0 | V82: 0 | W82: =IF(I82<>0,IF($C$16="No",0,-Variables!$L$22),0) -> 0 | X82: 0
I83: =IF(AND(I82+1<=Formulario!$D$9,I82<>0),I82+1,0) -> 0 | J83: 0 | K83: 0 | L83: 0 | M83: =IF(I83<>0,PMT($K$16,Formulario!$D$9,-Simulador!$N$21),0) -> 0 | N83: 0 | P83: 0 | Q83: 0 | R83: 0 | S83: 0 | T83: 0 | U83: 0 | V83: 0 | W83: =IF(I83<>0,IF($C$16="No",0,-Variables!$L$22),0) -> 0 | X83: 0
I84: =IF(AND(I83+1<=Formulario!$D$9,I83<>0),I83+1,0) -> 0 | J84: 0 | K84: 0 | L84: 0 | M84: =IF(I84<>0,PMT($K$16,Formulario!$D$9,-Simulador!$N$21),0) -> 0 | N84: 0 | P84: 0 | Q84: 0 | R84: 0 | S84: 0 | T84: 0 | U84: 0 | V84: 0 | W84: =IF(I84<>0,IF($C$16="No",0,-Variables!$L$22),0) -> 0 | X84: 0
I85: =IF(AND(I84+1<=Formulario!$D$9,I84<>0),I84+1,0) -> 0 | J85: 0 | K85: 0 | L85: 0 | M85: =IF(I85<>0,PMT($K$16,Formulario!$D$9,-Simulador!$N$21),0) -> 0 | N85: 0 | P85: 0 | Q85: 0 | R85: 0 | S85: 0 | T85: 0 | U85: 0 | V85: 0 | W85: =IF(I85<>0,IF($C$16="No",0,-Variables!$L$22),0) -> 0 | X85: =SUM(P85:W85) -> 0
I86: =IF(AND(I85+1<=Formulario!$D$9,I85<>0),I85+1,0) -> 0 | J86: 0 | K86: 0 | L86: 0 | M86: =IF(I86<>0,PMT($K$16,Formulario!$D$9,-Simulador!$N$21),0) -> 0 | N86: 0 | P86: 0 | Q86: 0 | R86: 0 | S86: 0 | T86: 0 | U86: 0 | V86: 0 | W86: =IF(I86<>0,IF($C$16="No",0,-Variables!$L$22),0) -> 0 | X86: 0
I87: =IF(AND(I86+1<=Formulario!$D$9,I86<>0),I86+1,0) -> 0 | J87: 0 | K87: =J87*$K$16 -> 0 | L87: =IF(I87<>0,M87-K87,0) -> 0 | M87: =IF(I87<>0,PMT($K$16,Formulario!$D$9,-Simulador!$N$21),0) -> 0 | N87: =J87-L87 -> 0 | P87: 0 | Q87: =IF(M87=0,0,-M87) -> 0 | R87: 0 | S87: 0 | T87: 0 | U87: 0 | V87: =-(VLOOKUP($C$12,$T$1:$V$7,3,0)*N86) -> 0 | W87: =IF(I87<>0,IF($C$16="No",0,-Variables!$L$22),0) -> 0 | X87: 0
I88: =IF(AND(I87+1<=Formulario!$D$9,I87<>0),I87+1,0) -> 0 | J88: =IF(I88<>0,N87,0) -> 0 | K88: 0 | L88: 0 | M88: =IF(I88<>0,PMT($K$16,Formulario!$D$9,-Simulador!$N$21),0) -> 0 | N88: 0 | P88: 0 | Q88: 0 | R88: 0 | S88: 0 | T88: 0 | U88: 0 | V88: 0 | W88: =IF(I88<>0,IF($C$16="No",0,-Variables!$L$22),0) -> 0 | X88: 0
I89: =IF(AND(I88+1<=Formulario!$D$9,I88<>0),I88+1,0) -> 0 | J89: 0 | K89: 0 | L89: 0 | M89: =IF(I89<>0,PMT($K$16,Formulario!$D$9,-Simulador!$N$21),0) -> 0 | N89: 0 | P89: 0 | Q89: 0 | R89: 0 | S89: 0 | T89: 0 | U89: 0 | V89: 0 | W89: =IF(I89<>0,IF($C$16="No",0,-Variables!$L$22),0) -> 0 | X89: 0
I90: =IF(AND(I89+1<=Formulario!$D$9,I89<>0),I89+1,0) -> 0 | J90: 0 | K90: 0 | L90: 0 | M90: =IF(I90<>0,PMT($K$16,Formulario!$D$9,-Simulador!$N$21),0) -> 0 | N90: 0 | P90: 0 | Q90: 0 | R90: 0 | S90: 0 | T90: 0 | U90: 0 | V90: 0 | W90: =IF(I90<>0,IF($C$16="No",0,-Variables!$L$22),0) -> 0 | X90: 0
I91: =IF(AND(I90+1<=Formulario!$D$9,I90<>0),I90+1,0) -> 0 | J91: 0 | K91: 0 | L91: 0 | M91: =IF(I91<>0,PMT($K$16,Formulario!$D$9,-Simulador!$N$21),0) -> 0 | N91: 0 | P91: 0 | Q91: 0 | R91: 0 | S91: 0 | T91: 0 | U91: 0 | V91: 0 | W91: =IF(I91<>0,IF($C$16="No",0,-Variables!$L$22),0) -> 0 | X91: 0
I92: =IF(AND(I91+1<=Formulario!$D$9,I91<>0),I91+1,0) -> 0 | J92: 0 | K92: 0 | L92: 0 | M92: =IF(I92<>0,PMT($K$16,Formulario!$D$9,-Simulador!$N$21),0) -> 0 | N92: 0 | P92: 0 | Q92: 0 | R92: 0 | S92: 0 | T92: 0 | U92: 0 | V92: 0 | W92: =IF(I92<>0,IF($C$16="No",0,-Variables!$L$22),0) -> 0 | X92: 0
I93: =IF(AND(I92+1<=Formulario!$D$9,I92<>0),I92+1,0) -> 0 | J93: 0 | K93: 0 | L93: 0 | M93: =IF(I93<>0,PMT($K$16,Formulario!$D$9,-Simulador!$N$21),0) -> 0 | N93: 0 | P93: 0 | Q93: 0 | R93: 0 | S93: 0 | T93: 0 | U93: 0 | V93: 0 | W93: =IF(I93<>0,IF($C$16="No",0,-Variables!$L$22),0) -> 0 | X93: 0
I94: =IF(AND(I93+1<=Formulario!$D$9,I93<>0),I93+1,0) -> 0 | J94: 0 | K94: 0 | L94: 0 | M94: =IF(I94<>0,PMT($K$16,Formulario!$D$9,-Simulador!$N$21),0) -> 0 | N94: 0 | P94: 0 | Q94: 0 | R94: 0 | S94: 0 | T94: 0 | U94: 0 | V94: 0 | W94: =IF(I94<>0,IF($C$16="No",0,-Variables!$L$22),0) -> 0 | X94: 0
I95: =IF(AND(I94+1<=Formulario!$D$9,I94<>0),I94+1,0) -> 0 | J95: 0 | K95: 0 | L95: 0 | M95: =IF(I95<>0,PMT($K$16,Formulario!$D$9,-Simulador!$N$21),0) -> 0 | N95: 0 | P95: 0 | Q95: 0 | R95: 0 | S95: 0 | T95: 0 | U95: 0 | V95: 0 | W95: =IF(I95<>0,IF($C$16="No",0,-Variables!$L$22),0) -> 0 | X95: 0
I96: =IF(AND(I95+1<=Formulario!$D$9,I95<>0),I95+1,0) -> 0 | J96: 0 | K96: 0 | L96: 0 | M96: =IF(I96<>0,PMT($K$16,Formulario!$D$9,-Simulador!$N$21),0) -> 0 | N96: 0 | P96: 0 | Q96: 0 | R96: 0 | S96: 0 | T96: 0 | U96: 0 | V96: 0 | W96: =IF(I96<>0,IF($C$16="No",0,-Variables!$L$22),0) -> 0 | X96: 0
I97: =IF(AND(I96+1<=Formulario!$D$9,I96<>0),I96+1,0) -> 0 | J97: 0 | K97: 0 | L97: 0 | M97: =IF(I97<>0,PMT($K$16,Formulario!$D$9,-Simulador!$N$21),0) -> 0 | N97: 0 | P97: 0 | Q97: 0 | R97: 0 | S97: 0 | T97: 0 | U97: 0 | V97: 0 | W97: =IF(I97<>0,IF($C$16="No",0,-Variables!$L$22),0) -> 0 | X97: 0
I98: =IF(AND(I97+1<=Formulario!$D$9,I97<>0),I97+1,0) -> 0 | J98: 0 | K98: 0 | L98: 0 | M98: =IF(I98<>0,PMT($K$16,Formulario!$D$9,-Simulador!$N$21),0) -> 0 | N98: 0 | P98: 0 | Q98: 0 | R98: 0 | S98: 0 | T98: 0 | U98: 0 | V98: 0 | W98: =IF(I98<>0,IF($C$16="No",0,-Variables!$L$22),0) -> 0 | X98: 0
I99: =IF(AND(I98+1<=Formulario!$D$9,I98<>0),I98+1,0) -> 0 | J99: 0 | K99: 0 | L99: 0 | M99: =IF(I99<>0,PMT($K$16,Formulario!$D$9,-Simulador!$N$21),0) -> 0 | N99: 0 | P99: 0 | Q99: 0 | R99: 0 | S99: 0 | T99: 0 | U99: 0 | V99: 0 | W99: =IF(I99<>0,IF($C$16="No",0,-Variables!$L$22),0) -> 0 | X99: 0
I100: =IF(AND(I99+1<=Formulario!$D$9,I99<>0),I99+1,0) -> 0 | J100: 0 | K100: 0 | L100: 0 | M100: =IF(I100<>0,PMT($K$16,Formulario!$D$9,-Simulador!$N$21),0) -> 0 | N100: 0 | P100: 0 | Q100: 0 | R100: 0 | S100: 0 | T100: 0 | U100: 0 | V100: 0 | W100: =IF(I100<>0,IF($C$16="No",0,-Variables!$L$22),0) -> 0 | X100: 0
I101: =IF(AND(I100+1<=Formulario!$D$9,I100<>0),I100+1,0) -> 0 | J101: 0 | K101: 0 | L101: 0 | M101: =IF(I101<>0,PMT($K$16,Formulario!$D$9,-Simulador!$N$21),0) -> 0 | N101: 0 | P101: 0 | Q101: 0 | R101: 0 | S101: 0 | T101: 0 | U101: 0 | V101: 0 | W101: =IF(I101<>0,IF($C$16="No",0,-Variables!$L$22),0) -> 0 | X101: 0
I102: =IF(AND(I101+1<=Formulario!$D$9,I101<>0),I101+1,0) -> 0 | J102: 0 | K102: 0 | L102: 0 | M102: =IF(I102<>0,PMT($K$16,Formulario!$D$9,-Simulador!$N$21),0) -> 0 | N102: 0 | P102: 0 | Q102: 0 | R102: 0 | S102: 0 | T102: 0 | U102: 0 | V102: 0 | W102: =IF(I102<>0,IF($C$16="No",0,-Variables!$L$22),0) -> 0 | X102: 0
I103: =IF(AND(I102+1<=Formulario!$D$9,I102<>0),I102+1,0) -> 0 | J103: 0 | K103: 0 | L103: 0 | M103: =IF(I103<>0,PMT($K$16,Formulario!$D$9,-Simulador!$N$21),0) -> 0 | N103: 0 | P103: 0 | Q103: 0 | R103: 0 | S103: 0 | T103: 0 | U103: 0 | V103: 0 | W103: =IF(I103<>0,IF($C$16="No",0,-Variables!$L$22),0) -> 0 | X103: 0
I104: =IF(AND(I103+1<=Formulario!$D$9,I103<>0),I103+1,0) -> 0 | J104: 0 | K104: 0 | L104: 0 | M104: =IF(I104<>0,PMT($K$16,Formulario!$D$9,-Simulador!$N$21),0) -> 0 | N104: 0 | P104: 0 | Q104: 0 | R104: 0 | S104: 0 | T104: 0 | U104: 0 | V104: 0 | W104: =IF(I104<>0,IF($C$16="No",0,-Variables!$L$22),0) -> 0 | X104: 0
I105: =IF(AND(I104+1<=Formulario!$D$9,I104<>0),I104+1,0) -> 0 | J105: 0 | K105: 0 | L105: 0 | M105: =IF(I105<>0,PMT($K$16,Formulario!$D$9,-Simulador!$N$21),0) -> 0 | N105: 0 | P105: 0 | Q105: 0 | R105: 0 | S105: 0 | T105: 0 | U105: 0 | V105: 0 | W105: =IF(I105<>0,IF($C$16="No",0,-Variables!$L$22),0) -> 0 | X105: 0
I106: =IF(AND(I105+1<=Formulario!$D$9,I105<>0),I105+1,0) -> 0 | J106: 0 | K106: 0 | L106: 0 | M106: =IF(I106<>0,PMT($K$16,Formulario!$D$9,-Simulador!$N$21),0) -> 0 | N106: 0 | P106: 0 | Q106: 0 | R106: 0 | S106: 0 | T106: 0 | U106: 0 | V106: 0 | W106: =IF(I106<>0,IF($C$16="No",0,-Variables!$L$22),0) -> 0 | X106: 0
I107: =IF(AND(I106+1<=Formulario!$D$9,I106<>0),I106+1,0) -> 0 | J107: 0 | K107: 0 | L107: 0 | M107: =IF(I107<>0,PMT($K$16,Formulario!$D$9,-Simulador!$N$21),0) -> 0 | N107: 0 | P107: 0 | Q107: 0 | R107: 0 | S107: 0 | T107: 0 | U107: 0 | V107: 0 | W107: =IF(I107<>0,IF($C$16="No",0,-Variables!$L$22),0) -> 0 | X107: 0
I108: =IF(AND(I107+1<=Formulario!$D$9,I107<>0),I107+1,0) -> 0 | J108: 0 | K108: 0 | L108: 0 | M108: =IF(I108<>0,PMT($K$16,Formulario!$D$9,-Simulador!$N$21),0) -> 0 | N108: 0 | P108: 0 | Q108: 0 | R108: 0 | S108: 0 | T108: 0 | U108: 0 | V108: 0 | W108: =IF(I108<>0,IF($C$16="No",0,-Variables!$L$22),0) -> 0 | X108: 0
I109: =IF(AND(I108+1<=Formulario!$D$9,I108<>0),I108+1,0) -> 0 | J109: 0 | K109: 0 | L109: 0 | M109: =IF(I109<>0,PMT($K$16,Formulario!$D$9,-Simulador!$N$21),0) -> 0 | N109: 0 | P109: 0 | Q109: 0 | R109: 0 | S109: 0 | T109: 0 | U109: 0 | V109: 0 | W109: =IF(I109<>0,IF($C$16="No",0,-Variables!$L$22),0) -> 0 | X109: 0
I110: =IF(AND(I109+1<=Formulario!$D$9,I109<>0),I109+1,0) -> 0 | J110: 0 | K110: 0 | L110: 0 | M110: =IF(I110<>0,PMT($K$16,Formulario!$D$9,-Simulador!$N$21),0) -> 0 | N110: 0 | P110: 0 | Q110: 0 | R110: 0 | S110: 0 | T110: 0 | U110: 0 | V110: 0 | W110: =IF(I110<>0,IF($C$16="No",0,-Variables!$L$22),0) -> 0 | X110: 0
I111: =IF(AND(I110+1<=Formulario!$D$9,I110<>0),I110+1,0) -> 0 | J111: 0 | K111: 0 | L111: 0 | M111: =IF(I111<>0,PMT($K$16,Formulario!$D$9,-Simulador!$N$21),0) -> 0 | N111: 0 | P111: 0 | Q111: 0 | R111: 0 | S111: 0 | T111: 0 | U111: 0 | V111: 0 | W111: =IF(I111<>0,IF($C$16="No",0,-Variables!$L$22),0) -> 0 | X111: 0
I112: =IF(AND(I111+1<=Formulario!$D$9,I111<>0),I111+1,0) -> 0 | J112: 0 | K112: 0 | L112: 0 | M112: =IF(I112<>0,PMT($K$16,Formulario!$D$9,-Simulador!$N$21),0) -> 0 | N112: 0 | P112: 0 | Q112: 0 | R112: 0 | S112: 0 | T112: 0 | U112: 0 | V112: 0 | W112: =IF(I112<>0,IF($C$16="No",0,-Variables!$L$22),0) -> 0 | X112: 0
I113: =IF(AND(I112+1<=Formulario!$D$9,I112<>0),I112+1,0) -> 0 | J113: 0 | K113: 0 | L113: 0 | M113: =IF(I113<>0,PMT($K$16,Formulario!$D$9,-Simulador!$N$21),0) -> 0 | N113: 0 | P113: 0 | Q113: 0 | R113: 0 | S113: 0 | T113: 0 | U113: 0 | V113: 0 | W113: =IF(I113<>0,IF($C$16="No",0,-Variables!$L$22),0) -> 0 | X113: 0
I114: =IF(AND(I113+1<=Formulario!$D$9,I113<>0),I113+1,0) -> 0 | J114: 0 | K114: 0 | L114: 0 | M114: =IF(I114<>0,PMT($K$16,Formulario!$D$9,-Simulador!$N$21),0) -> 0 | N114: 0 | P114: 0 | Q114: 0 | R114: 0 | S114: 0 | T114: 0 | U114: 0 | V114: 0 | W114: =IF(I114<>0,IF($C$16="No",0,-Variables!$L$22),0) -> 0 | X114: 0
I115: =IF(AND(I114+1<=Formulario!$D$9,I114<>0),I114+1,0) -> 0 | J115: 0 | K115: 0 | L115: 0 | M115: =IF(I115<>0,PMT($K$16,Formulario!$D$9,-Simulador!$N$21),0) -> 0 | N115: 0 | P115: 0 | Q115: 0 | R115: 0 | S115: 0 | T115: 0 | U115: 0 | V115: 0 | W115: =IF(I115<>0,IF($C$16="No",0,-Variables!$L$22),0) -> 0 | X115: 0
I116: =IF(AND(I115+1<=Formulario!$D$9,I115<>0),I115+1,0) -> 0 | J116: 0 | K116: 0 | L116: 0 | M116: =IF(I116<>0,PMT($K$16,Formulario!$D$9,-Simulador!$N$21),0) -> 0 | N116: 0 | P116: 0 | Q116: 0 | R116: 0 | S116: 0 | T116: 0 | U116: 0 | V116: 0 | W116: =IF(I116<>0,IF($C$16="No",0,-Variables!$L$22),0) -> 0 | X116: 0
I117: =IF(AND(I116+1<=Formulario!$D$9,I116<>0),I116+1,0) -> 0 | J117: 0 | K117: 0 | L117: 0 | M117: =IF(I117<>0,PMT($K$16,Formulario!$D$9,-Simulador!$N$21),0) -> 0 | N117: 0 | P117: 0 | Q117: 0 | R117: 0 | S117: 0 | T117: 0 | U117: 0 | V117: 0 | W117: =IF(I117<>0,IF($C$16="No",0,-Variables!$L$22),0) -> 0 | X117: 0
I118: =IF(AND(I117+1<=Formulario!$D$9,I117<>0),I117+1,0) -> 0 | J118: 0 | K118: 0 | L118: 0 | M118: =IF(I118<>0,PMT($K$16,Formulario!$D$9,-Simulador!$N$21),0) -> 0 | N118: 0 | P118: 0 | Q118: 0 | R118: 0 | S118: 0 | T118: 0 | U118: 0 | V118: 0 | W118: =IF(I118<>0,IF($C$16="No",0,-Variables!$L$22),0) -> 0 | X118: 0
I119: =IF(AND(I118+1<=Formulario!$D$9,I118<>0),I118+1,0) -> 0 | J119: 0 | K119: 0 | L119: 0 | M119: =IF(I119<>0,PMT($K$16,Formulario!$D$9,-Simulador!$N$21),0) -> 0 | N119: 0 | P119: 0 | Q119: 0 | R119: 0 | S119: 0 | T119: 0 | U119: 0 | V119: 0 | W119: =IF(I119<>0,IF($C$16="No",0,-Variables!$L$22),0) -> 0 | X119: 0
I120: =IF(AND(I119+1<=Formulario!$D$9,I119<>0),I119+1,0) -> 0 | J120: 0 | K120: 0 | L120: 0 | M120: =IF(I120<>0,PMT($K$16,Formulario!$D$9,-Simulador!$N$21),0) -> 0 | N120: 0 | P120: 0 | Q120: 0 | R120: 0 | S120: 0 | T120: 0 | U120: 0 | V120: 0 | W120: =IF(I120<>0,IF($C$16="No",0,-Variables!$L$22),0) -> 0 | X120: 0
I121: =IF(AND(I120+1<=Formulario!$D$9,I120<>0),I120+1,0) -> 0 | J121: 0 | K121: 0 | L121: 0 | M121: =IF(I121<>0,PMT($K$16,Formulario!$D$9,-Simulador!$N$21),0) -> 0 | N121: 0 | P121: 0 | Q121: 0 | R121: 0 | S121: 0 | T121: 0 | U121: 0 | V121: 0 | W121: =IF(I121<>0,IF($C$16="No",0,-Variables!$L$22),0) -> 0 | X121: 0
I122: =IF(AND(I121+1<=Formulario!$D$9,I121<>0),I121+1,0) -> 0 | J122: 0 | K122: 0 | L122: 0 | M122: =IF(I122<>0,PMT($K$16,Formulario!$D$9,-Simulador!$N$21),0) -> 0 | N122: 0 | P122: 0 | Q122: 0 | R122: 0 | S122: 0 | T122: 0 | U122: 0 | V122: 0 | W122: =IF(I122<>0,IF($C$16="No",0,-Variables!$L$22),0) -> 0 | X122: 0
I123: =IF(AND(I122+1<=Formulario!$D$9,I122<>0),I122+1,0) -> 0 | J123: 0 | K123: 0 | L123: 0 | M123: =IF(I123<>0,PMT($K$16,Formulario!$D$9,-Simulador!$N$21),0) -> 0 | N123: 0 | P123: 0 | Q123: 0 | R123: 0 | S123: 0 | T123: 0 | U123: 0 | V123: 0 | W123: =IF(I123<>0,IF($C$16="No",0,-Variables!$L$22),0) -> 0 | X123: 0
I124: =IF(AND(I123+1<=Formulario!$D$9,I123<>0),I123+1,0) -> 0 | J124: 0 | K124: 0 | L124: 0 | M124: =IF(I124<>0,PMT($K$16,Formulario!$D$9,-Simulador!$N$21),0) -> 0 | N124: 0 | P124: 0 | Q124: 0 | R124: 0 | S124: 0 | T124: 0 | U124: 0 | V124: 0 | W124: =IF(I124<>0,IF($C$16="No",0,-Variables!$L$22),0) -> 0 | X124: 0
I125: =IF(AND(I124+1<=Formulario!$D$9,I124<>0),I124+1,0) -> 0 | J125: 0 | K125: 0 | L125: 0 | M125: =IF(I125<>0,PMT($K$16,Formulario!$D$9,-Simulador!$N$21),0) -> 0 | N125: 0 | P125: 0 | Q125: 0 | R125: 0 | S125: 0 | T125: 0 | U125: 0 | V125: 0 | W125: =IF(I125<>0,IF($C$16="No",0,-Variables!$L$22),0) -> 0 | X125: 0
I126: =IF(AND(I125+1<=Formulario!$D$9,I125<>0),I125+1,0) -> 0 | J126: 0 | K126: 0 | L126: 0 | M126: =IF(I126<>0,PMT($K$16,Formulario!$D$9,-Simulador!$N$21),0) -> 0 | N126: 0 | P126: 0 | Q126: 0 | R126: 0 | S126: 0 | T126: 0 | U126: 0 | V126: 0 | W126: =IF(I126<>0,IF($C$16="No",0,-Variables!$L$22),0) -> 0 | X126: 0
I127: =IF(AND(I126+1<=Formulario!$D$9,I126<>0),I126+1,0) -> 0 | J127: 0 | K127: 0 | L127: 0 | M127: =IF(I127<>0,PMT($K$16,Formulario!$D$9,-Simulador!$N$21),0) -> 0 | N127: 0 | P127: 0 | Q127: 0 | R127: 0 | S127: 0 | T127: 0 | U127: 0 | V127: 0 | W127: =IF(I127<>0,IF($C$16="No",0,-Variables!$L$22),0) -> 0 | X127: 0
I128: =IF(AND(I127+1<=Formulario!$D$9,I127<>0),I127+1,0) -> 0 | J128: 0 | K128: 0 | L128: 0 | M128: =IF(I128<>0,PMT($K$16,Formulario!$D$9,-Simulador!$N$21),0) -> 0 | N128: 0 | P128: 0 | Q128: 0 | R128: 0 | S128: 0 | T128: 0 | U128: 0 | V128: 0 | W128: =IF(I128<>0,IF($C$16="No",0,-Variables!$L$22),0) -> 0 | X128: 0
I129: =IF(AND(I128+1<=Formulario!$D$9,I128<>0),I128+1,0) -> 0 | J129: 0 | K129: 0 | L129: 0 | M129: =IF(I129<>0,PMT($K$16,Formulario!$D$9,-Simulador!$N$21),0) -> 0 | N129: 0 | P129: 0 | Q129: 0 | R129: 0 | S129: 0 | T129: 0 | U129: 0 | V129: 0 | W129: =IF(I129<>0,IF($C$16="No",0,-Variables!$L$22),0) -> 0 | X129: 0
I130: =IF(AND(I129+1<=Formulario!$D$9,I129<>0),I129+1,0) -> 0 | J130: 0 | K130: 0 | L130: 0 | M130: =IF(I130<>0,PMT($K$16,Formulario!$D$9,-Simulador!$N$21),0) -> 0 | N130: 0 | P130: 0 | Q130: 0 | R130: 0 | S130: 0 | T130: 0 | U130: 0 | V130: 0 | W130: =IF(I130<>0,IF($C$16="No",0,-Variables!$L$22),0) -> 0 | X130: 0
I131: =IF(AND(I130+1<=Formulario!$D$9,I130<>0),I130+1,0) -> 0 | J131: 0 | K131: 0 | L131: 0 | M131: =IF(I131<>0,PMT($K$16,Formulario!$D$9,-Simulador!$N$21),0) -> 0 | N131: 0 | P131: 0 | Q131: 0 | R131: 0 | S131: 0 | T131: 0 | U131: 0 | V131: 0 | W131: =IF(I131<>0,IF($C$16="No",0,-Variables!$L$22),0) -> 0 | X131: 0
I132: =IF(AND(I131+1<=Formulario!$D$9,I131<>0),I131+1,0) -> 0 | J132: 0 | K132: 0 | L132: 0 | M132: =IF(I132<>0,PMT($K$16,Formulario!$D$9,-Simulador!$N$21),0) -> 0 | N132: 0 | P132: 0 | Q132: 0 | R132: 0 | S132: 0 | T132: 0 | U132: 0 | V132: 0 | W132: =IF(I132<>0,IF($C$16="No",0,-Variables!$L$22),0) -> 0 | X132: 0
I133: =IF(AND(I132+1<=Formulario!$D$9,I132<>0),I132+1,0) -> 0 | J133: 0 | K133: 0 | L133: 0 | M133: =IF(I133<>0,PMT($K$16,Formulario!$D$9,-Simulador!$N$21),0) -> 0 | N133: 0 | P133: 0 | Q133: 0 | R133: 0 | S133: 0 | T133: 0 | U133: 0 | V133: 0 | W133: =IF(I133<>0,IF($C$16="No",0,-Variables!$L$22),0) -> 0 | X133: 0
I134: =IF(AND(I133+1<=Formulario!$D$9,I133<>0),I133+1,0) -> 0 | J134: 0 | K134: 0 | L134: 0 | M134: =IF(I134<>0,PMT($K$16,Formulario!$D$9,-Simulador!$N$21),0) -> 0 | N134: 0 | P134: 0 | Q134: 0 | R134: 0 | S134: 0 | T134: 0 | U134: 0 | V134: 0 | W134: =IF(I134<>0,IF($C$16="No",0,-Variables!$L$22),0) -> 0 | X134: 0
I135: =IF(AND(I134+1<=Formulario!$D$9,I134<>0),I134+1,0) -> 0 | J135: 0 | K135: 0 | L135: 0 | M135: =IF(I135<>0,PMT($K$16,Formulario!$D$9,-Simulador!$N$21),0) -> 0 | N135: 0 | P135: 0 | Q135: 0 | R135: 0 | S135: 0 | T135: 0 | U135: 0 | V135: 0 | W135: =IF(I135<>0,IF($C$16="No",0,-Variables!$L$22),0) -> 0 | X135: 0
I136: =IF(AND(I135+1<=Formulario!$D$9,I135<>0),I135+1,0) -> 0 | J136: 0 | K136: 0 | L136: 0 | M136: =IF(I136<>0,PMT($K$16,Formulario!$D$9,-Simulador!$N$21),0) -> 0 | N136: 0 | P136: 0 | Q136: 0 | R136: 0 | S136: 0 | T136: 0 | U136: 0 | V136: 0 | W136: =IF(I136<>0,IF($C$16="No",0,-Variables!$L$22),0) -> 0 | X136: 0
I137: =IF(AND(I136+1<=Formulario!$D$9,I136<>0),I136+1,0) -> 0 | J137: 0 | K137: 0 | L137: 0 | M137: =IF(I137<>0,PMT($K$16,Formulario!$D$9,-Simulador!$N$21),0) -> 0 | N137: 0 | P137: 0 | Q137: 0 | R137: 0 | S137: 0 | T137: 0 | U137: 0 | V137: 0 | W137: =IF(I137<>0,IF($C$16="No",0,-Variables!$L$22),0) -> 0 | X137: 0
I138: =IF(AND(I137+1<=Formulario!$D$9,I137<>0),I137+1,0) -> 0 | J138: 0 | K138: 0 | L138: 0 | M138: =IF(I138<>0,PMT($K$16,Formulario!$D$9,-Simulador!$N$21),0) -> 0 | N138: 0 | P138: 0 | Q138: 0 | R138: 0 | S138: 0 | T138: 0 | U138: 0 | V138: 0 | W138: =IF(I138<>0,IF($C$16="No",0,-Variables!$L$22),0) -> 0 | X138: 0
I139: =IF(AND(I138+1<=Formulario!$D$9,I138<>0),I138+1,0) -> 0 | J139: 0 | K139: 0 | L139: 0 | M139: =IF(I139<>0,PMT($K$16,Formulario!$D$9,-Simulador!$N$21),0) -> 0 | N139: 0 | P139: 0 | Q139: 0 | R139: 0 | S139: 0 | T139: 0 | U139: 0 | V139: 0 | W139: =IF(I139<>0,IF($C$16="No",0,-Variables!$L$22),0) -> 0 | X139: 0
I140: =IF(AND(I139+1<=Formulario!$D$9,I139<>0),I139+1,0) -> 0 | J140: 0 | K140: 0 | L140: 0 | M140: =IF(I140<>0,PMT($K$16,Formulario!$D$9,-Simulador!$N$21),0) -> 0 | N140: 0 | P140: 0 | Q140: 0 | R140: 0 | S140: 0 | T140: 0 | U140: 0 | V140: 0 | W140: =IF(I140<>0,IF($C$16="No",0,-Variables!$L$22),0) -> 0 | X140: 0
I141: =IF(AND(I140+1<=Formulario!$D$9,I140<>0),I140+1,0) -> 0 | J141: 0 | K141: 0 | L141: 0 | M141: =IF(I141<>0,PMT($K$16,Formulario!$D$9,-Simulador!$N$21),0) -> 0 | N141: 0 | P141: 0 | Q141: 0 | R141: 0 | S141: 0 | T141: 0 | U141: 0 | V141: 0 | W141: =IF(I141<>0,IF($C$16="No",0,-Variables!$L$22),0) -> 0 | X141: 0
I142: =IF(AND(I141+1<=Formulario!$D$9,I141<>0),I141+1,0) -> 0 | J142: 0 | K142: 0 | L142: 0 | M142: =IF(I142<>0,PMT($K$16,Formulario!$D$9,-Simulador!$N$21),0) -> 0 | N142: 0 | P142: 0 | Q142: 0 | R142: 0 | S142: 0 | T142: 0 | U142: 0 | V142: 0 | W142: =IF(I142<>0,IF($C$16="No",0,-Variables!$L$22),0) -> 0 | X142: 0
I143: =IF(AND(I142+1<=Formulario!$D$9,I142<>0),I142+1,0) -> 0 | J143: 0 | K143: 0 | L143: 0 | M143: =IF(I143<>0,PMT($K$16,Formulario!$D$9,-Simulador!$N$21),0) -> 0 | N143: 0 | P143: 0 | Q143: 0 | R143: 0 | S143: 0 | T143: 0 | U143: 0 | V143: 0 | W143: =IF(I143<>0,IF($C$16="No",0,-Variables!$L$22),0) -> 0 | X143: 0
I144: =IF(AND(I143+1<=Formulario!$D$9,I143<>0),I143+1,0) -> 0 | J144: 0 | K144: 0 | L144: 0 | M144: =IF(I144<>0,PMT($K$16,Formulario!$D$9,-Simulador!$N$21),0) -> 0 | N144: 0 | P144: 0 | Q144: 0 | R144: 0 | S144: 0 | T144: 0 | U144: 0 | V144: 0 | W144: =IF(I144<>0,IF($C$16="No",0,-Variables!$L$22),0) -> 0 | X144: 0
I145: =IF(AND(I144+1<=Formulario!$D$9,I144<>0),I144+1,0) -> 0 | J145: 0 | K145: 0 | L145: 0 | M145: =IF(I145<>0,PMT($K$16,Formulario!$D$9,-Simulador!$N$21),0) -> 0 | N145: 0 | P145: 0 | Q145: 0 | R145: 0 | S145: 0 | T145: 0 | U145: 0 | V145: 0 | W145: =IF(I145<>0,IF($C$16="No",0,-Variables!$L$22),0) -> 0 | X145: 0
I146: =IF(AND(I145+1<=Formulario!$D$9,I145<>0),I145+1,0) -> 0 | J146: 0 | K146: 0 | L146: 0 | M146: =IF(I146<>0,PMT($K$16,Formulario!$D$9,-Simulador!$N$21),0) -> 0 | N146: 0 | P146: 0 | Q146: 0 | R146: 0 | S146: 0 | T146: 0 | U146: 0 | V146: 0 | W146: =IF(I146<>0,IF($C$16="No",0,-Variables!$L$22),0) -> 0 | X146: 0
I147: =IF(AND(I146+1<=Formulario!$D$9,I146<>0),I146+1,0) -> 0 | J147: 0 | K147: 0 | L147: 0 | M147: =IF(I147<>0,PMT($K$16,Formulario!$D$9,-Simulador!$N$21),0) -> 0 | N147: 0 | P147: 0 | Q147: 0 | R147: 0 | S147: 0 | T147: 0 | U147: 0 | V147: 0 | W147: =IF(I147<>0,IF($C$16="No",0,-Variables!$L$22),0) -> 0 | X147: 0
I148: =IF(AND(I147+1<=Formulario!$D$9,I147<>0),I147+1,0) -> 0 | J148: 0 | K148: 0 | L148: 0 | M148: =IF(I148<>0,PMT($K$16,Formulario!$D$9,-Simulador!$N$21),0) -> 0 | N148: 0 | P148: 0 | Q148: 0 | R148: 0 | S148: 0 | T148: 0 | U148: 0 | V148: 0 | W148: =IF(I148<>0,IF($C$16="No",0,-Variables!$L$22),0) -> 0 | X148: 0
I149: =IF(AND(I148+1<=Formulario!$D$9,I148<>0),I148+1,0) -> 0 | J149: 0 | K149: 0 | L149: 0 | M149: =IF(I149<>0,PMT($K$16,Formulario!$D$9,-Simulador!$N$21),0) -> 0 | N149: 0 | P149: 0 | Q149: 0 | R149: 0 | S149: 0 | T149: 0 | U149: 0 | V149: 0 | W149: =IF(I149<>0,IF($C$16="No",0,-Variables!$L$22),0) -> 0 | X149: =SUM(P149:W149) -> 0
I150: =IF(AND(I149+1<=Formulario!$D$9,I149<>0),I149+1,0) -> 0 | J150: 0 | K150: 0 | L150: 0 | M150: =IF(I150<>0,PMT($K$16,Formulario!$D$9,-Simulador!$N$21),0) -> 0 | N150: 0 | P150: 0 | Q150: 0 | R150: 0 | S150: 0 | T150: 0 | U150: 0 | V150: 0 | W150: =IF(I150<>0,IF($C$16="No",0,-Variables!$L$22),0) -> 0 | X150: 0
I151: =IF(AND(I150+1<=Formulario!$D$9,I150<>0),I150+1,0) -> 0 | J151: 0 | K151: =J151*$K$16 -> 0 | L151: =IF(I151<>0,M151-K151,0) -> 0 | M151: =IF(I151<>0,PMT($K$16,Formulario!$D$9,-Simulador!$N$21),0) -> 0 | N151: =J151-L151 -> 0 | P151: 0 | Q151: =IF(M151=0,0,-M151) -> 0 | R151: 0 | S151: 0 | T151: 0 | U151: 0 | V151: =-(VLOOKUP($C$12,$T$1:$V$7,3,0)*N150) -> 0 | W151: =IF(I151<>0,IF($C$16="No",0,-Variables!$L$22),0) -> 0 | X151: 0
I152: =IF(AND(I151+1<=Formulario!$D$9,I151<>0),I151+1,0) -> 0 | J152: =IF(I152<>0,N151,0) -> 0 | K152: 0 | L152: 0 | M152: =IF(I152<>0,PMT($K$16,Formulario!$D$9,-Simulador!$N$21),0) -> 0 | N152: 0 | P152: 0 | Q152: 0 | R152: 0 | S152: 0 | T152: 0 | U152: 0 | V152: 0 | W152: =IF(I152<>0,IF($C$16="No",0,-Variables!$L$22),0) -> 0 | X152: 0
I153: =IF(AND(I152+1<=Formulario!$D$9,I152<>0),I152+1,0) -> 0 | J153: 0 | K153: 0 | L153: 0 | M153: =IF(I153<>0,PMT($K$16,Formulario!$D$9,-Simulador!$N$21),0) -> 0 | N153: 0 | P153: 0 | Q153: 0 | R153: 0 | S153: 0 | T153: 0 | U153: 0 | V153: 0 | W153: =IF(I153<>0,IF($C$16="No",0,-Variables!$L$22),0) -> 0 | X153: 0
I154: =IF(AND(I153+1<=Formulario!$D$9,I153<>0),I153+1,0) -> 0 | J154: 0 | K154: 0 | L154: 0 | M154: =IF(I154<>0,PMT($K$16,Formulario!$D$9,-Simulador!$N$21),0) -> 0 | N154: 0 | P154: 0 | Q154: 0 | R154: 0 | S154: 0 | T154: 0 | U154: 0 | V154: 0 | W154: =IF(I154<>0,IF($C$16="No",0,-Variables!$L$22),0) -> 0 | X154: 0
I155: =IF(AND(I154+1<=Formulario!$D$9,I154<>0),I154+1,0) -> 0 | J155: 0 | K155: 0 | L155: 0 | M155: =IF(I155<>0,PMT($K$16,Formulario!$D$9,-Simulador!$N$21),0) -> 0 | N155: 0 | P155: 0 | Q155: 0 | R155: 0 | S155: 0 | T155: 0 | U155: 0 | V155: 0 | W155: =IF(I155<>0,IF($C$16="No",0,-Variables!$L$22),0) -> 0 | X155: 0
I156: =IF(AND(I155+1<=Formulario!$D$9,I155<>0),I155+1,0) -> 0 | J156: 0 | K156: 0 | L156: 0 | M156: =IF(I156<>0,PMT($K$16,Formulario!$D$9,-Simulador!$N$21),0) -> 0 | N156: 0 | P156: 0 | Q156: 0 | R156: 0 | S156: 0 | T156: 0 | U156: 0 | V156: 0 | W156: =IF(I156<>0,IF($C$16="No",0,-Variables!$L$22),0) -> 0 | X156: 0
I157: =IF(AND(I156+1<=Formulario!$D$9,I156<>0),I156+1,0) -> 0 | J157: 0 | K157: 0 | L157: 0 | M157: =IF(I157<>0,PMT($K$16,Formulario!$D$9,-Simulador!$N$21),0) -> 0 | N157: 0 | P157: 0 | Q157: 0 | R157: 0 | S157: 0 | T157: 0 | U157: 0 | V157: 0 | W157: =IF(I157<>0,IF($C$16="No",0,-Variables!$L$22),0) -> 0 | X157: 0
I158: =IF(AND(I157+1<=Formulario!$D$9,I157<>0),I157+1,0) -> 0 | J158: 0 | K158: 0 | L158: 0 | M158: =IF(I158<>0,PMT($K$16,Formulario!$D$9,-Simulador!$N$21),0) -> 0 | N158: 0 | P158: 0 | Q158: 0 | R158: 0 | S158: 0 | T158: 0 | U158: 0 | V158: 0 | W158: =IF(I158<>0,IF($C$16="No",0,-Variables!$L$22),0) -> 0 | X158: 0
I159: =IF(AND(I158+1<=Formulario!$D$9,I158<>0),I158+1,0) -> 0 | J159: 0 | K159: 0 | L159: 0 | M159: =IF(I159<>0,PMT($K$16,Formulario!$D$9,-Simulador!$N$21),0) -> 0 | N159: 0 | P159: 0 | Q159: 0 | R159: 0 | S159: 0 | T159: 0 | U159: 0 | V159: 0 | W159: =IF(I159<>0,IF($C$16="No",0,-Variables!$L$22),0) -> 0 | X159: 0
I160: =IF(AND(I159+1<=Formulario!$D$9,I159<>0),I159+1,0) -> 0 | J160: 0 | K160: 0 | L160: 0 | M160: =IF(I160<>0,PMT($K$16,Formulario!$D$9,-Simulador!$N$21),0) -> 0 | N160: 0 | P160: 0 | Q160: 0 | R160: 0 | S160: 0 | T160: 0 | U160: 0 | V160: 0 | W160: =IF(I160<>0,IF($C$16="No",0,-Variables!$L$22),0) -> 0 | X160: 0
I161: =IF(AND(I160+1<=Formulario!$D$9,I160<>0),I160+1,0) -> 0 | J161: 0 | K161: 0 | L161: 0 | M161: =IF(I161<>0,PMT($K$16,Formulario!$D$9,-Simulador!$N$21),0) -> 0 | N161: 0 | P161: 0 | Q161: 0 | R161: 0 | S161: 0 | T161: 0 | U161: 0 | V161: 0 | W161: =IF(I161<>0,IF($C$16="No",0,-Variables!$L$22),0) -> 0 | X161: 0
I162: =IF(AND(I161+1<=Formulario!$D$9,I161<>0),I161+1,0) -> 0 | J162: 0 | K162: 0 | L162: 0 | M162: =IF(I162<>0,PMT($K$16,Formulario!$D$9,-Simulador!$N$21),0) -> 0 | N162: 0 | P162: 0 | Q162: 0 | R162: 0 | S162: 0 | T162: 0 | U162: 0 | V162: 0 | W162: =IF(I162<>0,IF($C$16="No",0,-Variables!$L$22),0) -> 0 | X162: 0
I163: =IF(AND(I162+1<=Formulario!$D$9,I162<>0),I162+1,0) -> 0 | J163: 0 | K163: 0 | L163: 0 | M163: =IF(I163<>0,PMT($K$16,Formulario!$D$9,-Simulador!$N$21),0) -> 0 | N163: 0 | P163: 0 | Q163: 0 | R163: 0 | S163: 0 | T163: 0 | U163: 0 | V163: 0 | W163: =IF(I163<>0,IF($C$16="No",0,-Variables!$L$22),0) -> 0 | X163: 0
I164: =IF(AND(I163+1<=Formulario!$D$9,I163<>0),I163+1,0) -> 0 | J164: 0 | K164: 0 | L164: 0 | M164: =IF(I164<>0,PMT($K$16,Formulario!$D$9,-Simulador!$N$21),0) -> 0 | N164: 0 | P164: 0 | Q164: 0 | R164: 0 | S164: 0 | T164: 0 | U164: 0 | V164: 0 | W164: =IF(I164<>0,IF($C$16="No",0,-Variables!$L$22),0) -> 0 | X164: 0
I165: =IF(AND(I164+1<=Formulario!$D$9,I164<>0),I164+1,0) -> 0 | J165: 0 | K165: 0 | L165: 0 | M165: =IF(I165<>0,PMT($K$16,Formulario!$D$9,-Simulador!$N$21),0) -> 0 | N165: 0 | P165: 0 | Q165: 0 | R165: 0 | S165: 0 | T165: 0 | U165: 0 | V165: 0 | W165: =IF(I165<>0,IF($C$16="No",0,-Variables!$L$22),0) -> 0 | X165: 0
I166: =IF(AND(I165+1<=Formulario!$D$9,I165<>0),I165+1,0) -> 0 | J166: 0 | K166: 0 | L166: 0 | M166: =IF(I166<>0,PMT($K$16,Formulario!$D$9,-Simulador!$N$21),0) -> 0 | N166: 0 | P166: 0 | Q166: 0 | R166: 0 | S166: 0 | T166: 0 | U166: 0 | V166: 0 | W166: =IF(I166<>0,IF($C$16="No",0,-Variables!$L$22),0) -> 0 | X166: 0
I167: =IF(AND(I166+1<=Formulario!$D$9,I166<>0),I166+1,0) -> 0 | J167: 0 | K167: 0 | L167: 0 | M167: =IF(I167<>0,PMT($K$16,Formulario!$D$9,-Simulador!$N$21),0) -> 0 | N167: 0 | P167: 0 | Q167: 0 | R167: 0 | S167: 0 | T167: 0 | U167: 0 | V167: 0 | W167: =IF(I167<>0,IF($C$16="No",0,-Variables!$L$22),0) -> 0 | X167: 0
I168: =IF(AND(I167+1<=Formulario!$D$9,I167<>0),I167+1,0) -> 0 | J168: 0 | K168: 0 | L168: 0 | M168: =IF(I168<>0,PMT($K$16,Formulario!$D$9,-Simulador!$N$21),0) -> 0 | N168: 0 | P168: 0 | Q168: 0 | R168: 0 | S168: 0 | T168: 0 | U168: 0 | V168: 0 | W168: =IF(I168<>0,IF($C$16="No",0,-Variables!$L$22),0) -> 0 | X168: 0
I169: =IF(AND(I168+1<=Formulario!$D$9,I168<>0),I168+1,0) -> 0 | J169: 0 | K169: 0 | L169: 0 | M169: =IF(I169<>0,PMT($K$16,Formulario!$D$9,-Simulador!$N$21),0) -> 0 | N169: 0 | P169: 0 | Q169: 0 | R169: 0 | S169: 0 | T169: 0 | U169: 0 | V169: 0 | W169: =IF(I169<>0,IF($C$16="No",0,-Variables!$L$22),0) -> 0 | X169: 0
I170: =IF(AND(I169+1<=Formulario!$D$9,I169<>0),I169+1,0) -> 0 | J170: 0 | K170: 0 | L170: 0 | M170: =IF(I170<>0,PMT($K$16,Formulario!$D$9,-Simulador!$N$21),0) -> 0 | N170: 0 | P170: 0 | Q170: 0 | R170: 0 | S170: 0 | T170: 0 | U170: 0 | V170: 0 | W170: =IF(I170<>0,IF($C$16="No",0,-Variables!$L$22),0) -> 0 | X170: 0
I171: =IF(AND(I170+1<=Formulario!$D$9,I170<>0),I170+1,0) -> 0 | J171: 0 | K171: 0 | L171: 0 | M171: =IF(I171<>0,PMT($K$16,Formulario!$D$9,-Simulador!$N$21),0) -> 0 | N171: 0 | P171: 0 | Q171: 0 | R171: 0 | S171: 0 | T171: 0 | U171: 0 | V171: 0 | W171: =IF(I171<>0,IF($C$16="No",0,-Variables!$L$22),0) -> 0 | X171: 0
I172: =IF(AND(I171+1<=Formulario!$D$9,I171<>0),I171+1,0) -> 0 | J172: 0 | K172: 0 | L172: 0 | M172: =IF(I172<>0,PMT($K$16,Formulario!$D$9,-Simulador!$N$21),0) -> 0 | N172: 0 | P172: 0 | Q172: 0 | R172: 0 | S172: 0 | T172: 0 | U172: 0 | V172: 0 | W172: =IF(I172<>0,IF($C$16="No",0,-Variables!$L$22),0) -> 0 | X172: 0
I173: =IF(AND(I172+1<=Formulario!$D$9,I172<>0),I172+1,0) -> 0 | J173: 0 | K173: 0 | L173: 0 | M173: =IF(I173<>0,PMT($K$16,Formulario!$D$9,-Simulador!$N$21),0) -> 0 | N173: 0 | P173: 0 | Q173: 0 | R173: 0 | S173: 0 | T173: 0 | U173: 0 | V173: 0 | W173: =IF(I173<>0,IF($C$16="No",0,-Variables!$L$22),0) -> 0 | X173: 0
I174: =IF(AND(I173+1<=Formulario!$D$9,I173<>0),I173+1,0) -> 0 | J174: 0 | K174: 0 | L174: 0 | M174: =IF(I174<>0,PMT($K$16,Formulario!$D$9,-Simulador!$N$21),0) -> 0 | N174: 0 | P174: 0 | Q174: 0 | R174: 0 | S174: 0 | T174: 0 | U174: 0 | V174: 0 | W174: =IF(I174<>0,IF($C$16="No",0,-Variables!$L$22),0) -> 0 | X174: 0
I175: =IF(AND(I174+1<=Formulario!$D$9,I174<>0),I174+1,0) -> 0 | J175: 0 | K175: 0 | L175: 0 | M175: =IF(I175<>0,PMT($K$16,Formulario!$D$9,-Simulador!$N$21),0) -> 0 | N175: 0 | P175: 0 | Q175: 0 | R175: 0 | S175: 0 | T175: 0 | U175: 0 | V175: 0 | W175: =IF(I175<>0,IF($C$16="No",0,-Variables!$L$22),0) -> 0 | X175: 0
I176: =IF(AND(I175+1<=Formulario!$D$9,I175<>0),I175+1,0) -> 0 | J176: 0 | K176: 0 | L176: 0 | M176: =IF(I176<>0,PMT($K$16,Formulario!$D$9,-Simulador!$N$21),0) -> 0 | N176: 0 | P176: 0 | Q176: 0 | R176: 0 | S176: 0 | T176: 0 | U176: 0 | V176: 0 | W176: =IF(I176<>0,IF($C$16="No",0,-Variables!$L$22),0) -> 0 | X176: 0
I177: =IF(AND(I176+1<=Formulario!$D$9,I176<>0),I176+1,0) -> 0 | J177: 0 | K177: 0 | L177: 0 | M177: =IF(I177<>0,PMT($K$16,Formulario!$D$9,-Simulador!$N$21),0) -> 0 | N177: 0 | P177: 0 | Q177: 0 | R177: 0 | S177: 0 | T177: 0 | U177: 0 | V177: 0 | W177: =IF(I177<>0,IF($C$16="No",0,-Variables!$L$22),0) -> 0 | X177: 0
I178: =IF(AND(I177+1<=Formulario!$D$9,I177<>0),I177+1,0) -> 0 | J178: 0 | K178: 0 | L178: 0 | M178: =IF(I178<>0,PMT($K$16,Formulario!$D$9,-Simulador!$N$21),0) -> 0 | N178: 0 | P178: 0 | Q178: 0 | R178: 0 | S178: 0 | T178: 0 | U178: 0 | V178: 0 | W178: =IF(I178<>0,IF($C$16="No",0,-Variables!$L$22),0) -> 0 | X178: 0
I179: =IF(AND(I178+1<=Formulario!$D$9,I178<>0),I178+1,0) -> 0 | J179: 0 | K179: 0 | L179: 0 | M179: =IF(I179<>0,PMT($K$16,Formulario!$D$9,-Simulador!$N$21),0) -> 0 | N179: 0 | P179: 0 | Q179: 0 | R179: 0 | S179: 0 | T179: 0 | U179: 0 | V179: 0 | W179: =IF(I179<>0,IF($C$16="No",0,-Variables!$L$22),0) -> 0 | X179: 0
I180: =IF(AND(I179+1<=Formulario!$D$9,I179<>0),I179+1,0) -> 0 | J180: 0 | K180: 0 | L180: 0 | M180: =IF(I180<>0,PMT($K$16,Formulario!$D$9,-Simulador!$N$21),0) -> 0 | N180: 0 | P180: 0 | Q180: 0 | R180: 0 | S180: 0 | T180: 0 | U180: 0 | V180: 0 | W180: =IF(I180<>0,IF($C$16="No",0,-Variables!$L$22),0) -> 0 | X180: 0
I181: =IF(AND(I180+1<=Formulario!$D$9,I180<>0),I180+1,0) -> 0 | J181: 0 | K181: 0 | L181: 0 | M181: =IF(I181<>0,PMT($K$16,Formulario!$D$9,-Simulador!$N$21),0) -> 0 | N181: 0 | P181: 0 | Q181: 0 | R181: 0 | S181: 0 | T181: 0 | U181: 0 | V181: 0 | W181: =IF(I181<>0,IF($C$16="No",0,-Variables!$L$22),0) -> 0 | X181: 0
I182: =IF(AND(I181+1<=Formulario!$D$9,I181<>0),I181+1,0) -> 0 | J182: 0 | K182: 0 | L182: 0 | M182: =IF(I182<>0,PMT($K$16,Formulario!$D$9,-Simulador!$N$21),0) -> 0 | N182: 0 | P182: 0 | Q182: 0 | R182: 0 | S182: 0 | T182: 0 | U182: 0 | V182: 0 | W182: =IF(I182<>0,IF($C$16="No",0,-Variables!$L$22),0) -> 0 | X182: 0
I183: =IF(AND(I182+1<=Formulario!$D$9,I182<>0),I182+1,0) -> 0 | J183: 0 | K183: 0 | L183: 0 | M183: =IF(I183<>0,PMT($K$16,Formulario!$D$9,-Simulador!$N$21),0) -> 0 | N183: 0 | P183: 0 | Q183: 0 | R183: 0 | S183: 0 | T183: 0 | U183: 0 | V183: 0 | W183: =IF(I183<>0,IF($C$16="No",0,-Variables!$L$22),0) -> 0 | X183: 0
I184: =IF(AND(I183+1<=Formulario!$D$9,I183<>0),I183+1,0) -> 0 | J184: 0 | K184: 0 | L184: 0 | M184: =IF(I184<>0,PMT($K$16,Formulario!$D$9,-Simulador!$N$21),0) -> 0 | N184: 0 | P184: 0 | Q184: 0 | R184: 0 | S184: 0 | T184: 0 | U184: 0 | V184: 0 | W184: =IF(I184<>0,IF($C$16="No",0,-Variables!$L$22),0) -> 0 | X184: 0
I185: =IF(AND(I184+1<=Formulario!$D$9,I184<>0),I184+1,0) -> 0 | J185: 0 | K185: 0 | L185: 0 | M185: =IF(I185<>0,PMT($K$16,Formulario!$D$9,-Simulador!$N$21),0) -> 0 | N185: 0 | P185: 0 | Q185: 0 | R185: 0 | S185: 0 | T185: 0 | U185: 0 | V185: 0 | W185: =IF(I185<>0,IF($C$16="No",0,-Variables!$L$22),0) -> 0 | X185: 0
I186: =IF(AND(I185+1<=Formulario!$D$9,I185<>0),I185+1,0) -> 0 | J186: 0 | K186: 0 | L186: 0 | M186: =IF(I186<>0,PMT($K$16,Formulario!$D$9,-Simulador!$N$21),0) -> 0 | N186: 0 | P186: 0 | Q186: 0 | R186: 0 | S186: 0 | T186: 0 | U186: 0 | V186: 0 | W186: =IF(I186<>0,IF($C$16="No",0,-Variables!$L$22),0) -> 0 | X186: 0
I187: =IF(AND(I186+1<=Formulario!$D$9,I186<>0),I186+1,0) -> 0 | J187: 0 | K187: 0 | L187: 0 | M187: =IF(I187<>0,PMT($K$16,Formulario!$D$9,-Simulador!$N$21),0) -> 0 | N187: 0 | P187: 0 | Q187: 0 | R187: 0 | S187: 0 | T187: 0 | U187: 0 | V187: 0 | W187: =IF(I187<>0,IF($C$16="No",0,-Variables!$L$22),0) -> 0 | X187: 0
I188: =IF(AND(I187+1<=Formulario!$D$9,I187<>0),I187+1,0) -> 0 | J188: 0 | K188: 0 | L188: 0 | M188: =IF(I188<>0,PMT($K$16,Formulario!$D$9,-Simulador!$N$21),0) -> 0 | N188: 0 | P188: 0 | Q188: 0 | R188: 0 | S188: 0 | T188: 0 | U188: 0 | V188: 0 | W188: =IF(I188<>0,IF($C$16="No",0,-Variables!$L$22),0) -> 0 | X188: 0
I189: =IF(AND(I188+1<=Formulario!$D$9,I188<>0),I188+1,0) -> 0 | J189: 0 | K189: 0 | L189: 0 | M189: =IF(I189<>0,PMT($K$16,Formulario!$D$9,-Simulador!$N$21),0) -> 0 | N189: 0 | P189: 0 | Q189: 0 | R189: 0 | S189: 0 | T189: 0 | U189: 0 | V189: 0 | W189: =IF(I189<>0,IF($C$16="No",0,-Variables!$L$22),0) -> 0 | X189: 0
I190: =IF(AND(I189+1<=Formulario!$D$9,I189<>0),I189+1,0) -> 0 | J190: 0 | K190: 0 | L190: 0 | M190: =IF(I190<>0,PMT($K$16,Formulario!$D$9,-Simulador!$N$21),0) -> 0 | N190: 0 | P190: 0 | Q190: 0 | R190: 0 | S190: 0 | T190: 0 | U190: 0 | V190: 0 | W190: =IF(I190<>0,IF($C$16="No",0,-Variables!$L$22),0) -> 0 | X190: 0
I191: =IF(AND(I190+1<=Formulario!$D$9,I190<>0),I190+1,0) -> 0 | J191: 0 | K191: 0 | L191: 0 | M191: =IF(I191<>0,PMT($K$16,Formulario!$D$9,-Simulador!$N$21),0) -> 0 | N191: 0 | P191: 0 | Q191: 0 | R191: 0 | S191: 0 | T191: 0 | U191: 0 | V191: 0 | W191: =IF(I191<>0,IF($C$16="No",0,-Variables!$L$22),0) -> 0 | X191: 0
I192: =IF(AND(I191+1<=Formulario!$D$9,I191<>0),I191+1,0) -> 0 | J192: 0 | K192: 0 | L192: 0 | M192: =IF(I192<>0,PMT($K$16,Formulario!$D$9,-Simulador!$N$21),0) -> 0 | N192: 0 | P192: 0 | Q192: 0 | R192: 0 | S192: 0 | T192: 0 | U192: 0 | V192: 0 | W192: =IF(I192<>0,IF($C$16="No",0,-Variables!$L$22),0) -> 0 | X192: 0
I193: =IF(AND(I192+1<=Formulario!$D$9,I192<>0),I192+1,0) -> 0 | J193: 0 | K193: 0 | L193: 0 | M193: =IF(I193<>0,PMT($K$16,Formulario!$D$9,-Simulador!$N$21),0) -> 0 | N193: 0 | P193: 0 | Q193: 0 | R193: 0 | S193: 0 | T193: 0 | U193: 0 | V193: 0 | W193: =IF(I193<>0,IF($C$16="No",0,-Variables!$L$22),0) -> 0 | X193: 0
I194: =IF(AND(I193+1<=Formulario!$D$9,I193<>0),I193+1,0) -> 0 | J194: 0 | K194: 0 | L194: 0 | M194: =IF(I194<>0,PMT($K$16,Formulario!$D$9,-Simulador!$N$21),0) -> 0 | N194: 0 | P194: 0 | Q194: 0 | R194: 0 | S194: 0 | T194: 0 | U194: 0 | V194: 0 | W194: =IF(I194<>0,IF($C$16="No",0,-Variables!$L$22),0) -> 0 | X194: 0
I195: =IF(AND(I194+1<=Formulario!$D$9,I194<>0),I194+1,0) -> 0 | J195: 0 | K195: 0 | L195: 0 | M195: =IF(I195<>0,PMT($K$16,Formulario!$D$9,-Simulador!$N$21),0) -> 0 | N195: 0 | P195: 0 | Q195: 0 | R195: 0 | S195: 0 | T195: 0 | U195: 0 | V195: 0 | W195: =IF(I195<>0,IF($C$16="No",0,-Variables!$L$22),0) -> 0 | X195: 0
I196: =IF(AND(I195+1<=Formulario!$D$9,I195<>0),I195+1,0) -> 0 | J196: 0 | K196: 0 | L196: 0 | M196: =IF(I196<>0,PMT($K$16,Formulario!$D$9,-Simulador!$N$21),0) -> 0 | N196: 0 | P196: 0 | Q196: 0 | R196: 0 | S196: 0 | T196: 0 | U196: 0 | V196: 0 | W196: =IF(I196<>0,IF($C$16="No",0,-Variables!$L$22),0) -> 0 | X196: 0
I197: =IF(AND(I196+1<=Formulario!$D$9,I196<>0),I196+1,0) -> 0 | J197: 0 | K197: 0 | L197: 0 | M197: =IF(I197<>0,PMT($K$16,Formulario!$D$9,-Simulador!$N$21),0) -> 0 | N197: 0 | P197: 0 | Q197: 0 | R197: 0 | S197: 0 | T197: 0 | U197: 0 | V197: 0 | W197: =IF(I197<>0,IF($C$16="No",0,-Variables!$L$22),0) -> 0 | X197: 0
I198: =IF(AND(I197+1<=Formulario!$D$9,I197<>0),I197+1,0) -> 0 | J198: 0 | K198: 0 | L198: 0 | M198: =IF(I198<>0,PMT($K$16,Formulario!$D$9,-Simulador!$N$21),0) -> 0 | N198: 0 | P198: 0 | Q198: 0 | R198: 0 | S198: 0 | T198: 0 | U198: 0 | V198: 0 | W198: =IF(I198<>0,IF($C$16="No",0,-Variables!$L$22),0) -> 0 | X198: 0
I199: =IF(AND(I198+1<=Formulario!$D$9,I198<>0),I198+1,0) -> 0 | J199: 0 | K199: 0 | L199: 0 | M199: =IF(I199<>0,PMT($K$16,Formulario!$D$9,-Simulador!$N$21),0) -> 0 | N199: 0 | P199: 0 | Q199: 0 | R199: 0 | S199: 0 | T199: 0 | U199: 0 | V199: 0 | W199: =IF(I199<>0,IF($C$16="No",0,-Variables!$L$22),0) -> 0 | X199: 0
I200: =IF(AND(I199+1<=Formulario!$D$9,I199<>0),I199+1,0) -> 0 | J200: 0 | K200: 0 | L200: 0 | M200: =IF(I200<>0,PMT($K$16,Formulario!$D$9,-Simulador!$N$21),0) -> 0 | N200: 0 | P200: 0 | Q200: 0 | R200: 0 | S200: 0 | T200: 0 | U200: 0 | V200: 0 | W200: =IF(I200<>0,IF($C$16="No",0,-Variables!$L$22),0) -> 0 | X200: 0
I201: =IF(AND(I200+1<=Formulario!$D$9,I200<>0),I200+1,0) -> 0 | J201: 0 | K201: 0 | L201: 0 | M201: =IF(I201<>0,PMT($K$16,Formulario!$D$9,-Simulador!$N$21),0) -> 0 | N201: 0 | P201: 0 | Q201: 0 | R201: 0 | S201: 0 | T201: 0 | U201: 0 | V201: 0 | W201: =IF(I201<>0,IF($C$16="No",0,-Variables!$L$22),0) -> 0 | X201: 0
... 120 more rows
